Workbook

Sheet gl. til nyt niveau (hidden)
B1: 1.398079
D2: Nyt grundbeløb | E2: Nyt grundbeløb
A3: Grundbeløb pr. 1/10-1984 | B3: I alt pr. 1. april 1999 inkl. %regulering | D3: pr. 31/3-2000 | E3: pr. 31/3-2000
D4: ekskl. afrunding | E4: inkl. afrunding
F5: beløb
B6: pr. gang/år | C6: pr. måned | F6: +/-
A7: 1.63 | B7: =IF(A7<1000,$B$1*A7,ROUND($B$1*A7,0)) -> 2.27886877 | D7: =B7 -> 2.27886877 | E7: =IF(D7<1000,D7,ROUND(D7,-2)) -> 2.27886877
A8: 5 | B8: 6.990395 | D8: =B8 -> 6.990395 | E8: 6.990395
A9: 5.8 | B9: 8.1088582 | D9: 8.1088582 | E9: 8.1088582
A10: 9 | B10: 12.582711 | D10: 12.582711 | E10: 12.582711
A11: 10.5 | B11: 14.6798295 | D11: 14.6798295 | E11: 14.6798295
A12: 12.22 | B12: 17.08452538 | D12: 17.08452538 | E12: 17.08452538
A13: 12.65 | B13: 17.68569935 | D13: 17.68569935 | E13: 17.68569935
A14: 13.39 | B14: 18.72027781 | D14: 18.72027781 | E14: 18.72027781
A15: 13.75 | B15: 19.22358625 | D15: 19.22358625 | E15: 19.22358625
A16: 14.46 | B16: 20.21622234 | D16: 20.21622234 | E16: 20.21622234
A17: 15.2 | B17: 21.2508008 | D17: 21.2508008 | E17: 21.2508008
A18: 15.5 | B18: 21.6702245 | D18: 21.6702245 | E18: 21.6702245
A19: 17 | B19: 23.767343 | D19: 23.767343 | E19: 23.767343
A20: 18.5 | B20: 25.8644615 | D20: 25.8644615 | E20: 25.8644615
A21: 19 | B21: 26.563501 | D21: 26.563501 | E21: 26.563501
A22: 21 | B22: 29.359659 | D22: 29.359659 | E22: 29.359659
A23: 23 | B23: 32.155817 | D23: 32.155817 | E23: 32.155817
A24: 24.97 | B24: 34.91003263 | D24: 34.91003263 | E24: 34.91003263
A25: 28 | B25: 39.146212 | D25: 39.146212 | E25: 39.146212
A26: 30 | B26: 41.94237 | D26: 41.94237 | E26: 41.94237
A27: 33.29 | B27: 46.54204991 | D27: 46.54204991 | E27: 46.54204991
A28: 42 | B28: 58.719318 | D28: 58.719318 | E28: 58.719318
A29: 61.26 | B29: 85.64631954 | D29: 85.64631954 | E29: 85.64631954
A30: 62 | B30: 86.680898 | D30: 86.680898 | E30: 86.680898
A31: 68.32 | B31: 95.51675728 | D31: 95.51675728 | E31: 95.51675728
A32: 75.13 | B32: 105.0376753 | D32: 105.0376753 | E32: 105.0376753
A33: 80.38 | B33: 112.37759 | D33: 112.37759 | E33: 112.37759
A34: 136.64 | B34: 191.0335146 | D34: =B34 -> 191.0335146 | E34: 191.0335146
A35: 143.99 | B35: 201.3093952 | D35: =B35 -> 201.3093952 | E35: 201.3093952
A36: 150.61 | B36: 210.5646782 | D36: 210.5646782 | E36: 210.5646782
A37: 164 | B37: 229.284956 | D37: 229.284956 | E37: 229.284956
A38: 170 | B38: 237.67343 | D38: 237.67343 | E38: 237.67343
A39: 190 | B39: 265.63501 | D39: 265.63501 | E39: =IF(D39<1000,D39,ROUND(D39,-2)) -> 265.63501
A40: 195 | B40: 272.625405 | D40: 272.625405 | E40: 272.625405
A41: 202 | B41: 282.411958 | D41: 282.411958 | E41: 282.411958
A42: 260 | B42: 363.50054 | D42: 363.50054 | E42: 363.50054
A43: 278 | B43: 388.665962 | D43: 388.665962 | E43: 388.665962
A44: 300.84 | B44: 420.5980864 | D44: 420.5980864 | E44: 420.5980864
A45: 350 | B45: 489.32765 | D45: 489.32765 | E45: 489.32765
A46: 380 | B46: 531.27002 | D46: 531.27002 | E46: 531.27002
A47: 398.95 | B47: 557.763617 | D47: 557.763617 | E47: 557.763617
A48: 420 | B48: 587.19318 | D48: 587.19318 | E48: 587.19318
A49: 465 | B49: 650.106735 | D49: 650.106735 | E49: 650.106735
A50: 490 | B50: 685.05871 | D50: 685.05871 | E50: 685.05871
A51: 502 | B51: 701.835658 | D51: 701.835658 | E51: 701.835658
A52: 559 | B52: 781.526161 | D52: 781.526161 | E52: 781.526161
A53: 597 | B53: 834.653163 | D53: 834.653163 | E53: 834.653163
A54: 700 | B54: 978.6553 | C54: =VALUE(B54)/12 -> 81.55460833 | D54: 978.6553 | E54: =IF(D54<1000,D54,ROUND(D54,-2)) -> 978.6553 | F54: =E54-D54 -> 0
A55: 750 | B55: 1048.55925 | C55: 87.3799375 | D55: 1048.55925 | E55: =IF(D55<1000,D55,ROUND(D55,-2)) -> 1000 | F55: -48.55925
A56: 800 | B56: 1118.4632 | C56: 93.20526667 | D56: 1118.4632 | E56: =IF(D56<1000,D56,ROUND(D56,-2)) -> 1100 | F56: -18.4632
A57: 842.75 | B57: 1178.231077 | C57: 98.1859231 | D57: 1178.231077 | E57: 1200 | F57: 21.76892275
A58: 868 | B58: 1213.532572 | C58: 101.1277143 | D58: 1213.532572 | E58: 1200 | F58: -13.532572
A59: 917.14 | B59: 1282.234174 | C59: 106.8528478 | D59: =B59 -> 1282.234174 | E59: 1300 | F59: 17.76582594
A60: 920 | B60: 1286.23268 | C60: 107.1860567 | D60: 1286.23268 | E60: 1300 | F60: 13.76732
A61: 925 | B61: 1293.223075 | C61: 107.7685896 | D61: 1293.223075 | E61: 1300 | F61: 6.776925
A62: 950 | B62: =IF(A62<1000,$B$1*A62,ROUND($B$1*A62,0)) -> 1328.17505 | C62: 110.6812542 | D62: 1328.17505 | E62: 1300 | F62: -28.17505
A63: 1000 | B63: =IF(A63<1000,$B$1*A63,ROUND($B$1*A63,0)) -> 1398 | C63: 116.5 | D63: 1398 | E63: 1400 | F63: 2
A64: 1050 | B64: =IF(A64<1000,$B$1*A64,ROUND($B$1*A64,0)) -> 1468 | C64: 122.3333333 | D64: 1468 | E64: 1500 | F64: 32
A65: 1100 | B65: =IF(A65<1000,$B$1*A65,ROUND($B$1*A65,0)) -> 1538 | C65: 128.1666667 | D65: 1538 | E65: 1500 | F65: -38
A66: 1200 | B66: 1678 | C66: 139.8333333 | D66: 1678 | E66: 1700 | F66: 22
A67: 1245 | B67: 1741 | C67: 145.0833333 | D67: =B67 -> 1741 | E67: 1700 | F67: =E67-D67 -> -41
A68: 1300 | B68: 1818 | C68: 151.5 | D68: 1818 | E68: 1800 | F68: -18
A69: 1327 | B69: 1855 | C69: 154.5833333 | D69: 1855 | E69: 1900 | F69: 45
A70: 1400 | B70: 1957 | C70: 163.0833333 | D70: 1957 | E70: 2000 | F70: 43
A71: 1500 | B71: 2097 | C71: 174.75 | D71: 2097 | E71: 2100 | F71: 3
A72: 1600 | B72: 2237 | C72: 186.4166667 | D72: 2237 | E72: 2200 | F72: -37
A73: 1700 | B73: 2377 | C73: 198.0833333 | D73: 2377 | E73: 2400 | F73: 23
A74: 1750 | B74: 2447 | C74: 203.9166667 | D74: 2447 | E74: 2400 | F74: -47
A75: 1800 | B75: 2517 | C75: 209.75 | D75: 2517 | E75: 2500 | F75: -17
A76: 1900 | B76: 2656 | C76: 221.3333333 | D76: 2656 | E76: 2700 | F76: 44
A77: 2000 | B77: 2796 | C77: 233 | D77: 2796 | E77: 2800 | F77: 4
A78: 2050 | B78: 2866 | C78: 238.8333333 | D78: 2866 | E78: 2900 | F78: 34
A79: 2100 | B79: 2936 | C79: 244.6666667 | D79: 2936 | E79: 2900 | F79: -36
A80: 2145 | B80: 2999 | C80: 249.9166667 | D80: 2999 | E80: 3000 | F80: 1
A81: 2150 | B81: 3006 | C81: 250.5 | D81: 3006 | E81: 3000 | F81: -6
A82: 2200 | B82: 3076 | C82: 256.3333333 | D82: 3076 | E82: 3100 | F82: 24
A83: 2300 | B83: 3216 | C83: 268 | D83: 3216 | E83: 3200 | F83: -16
A84: 2400 | B84: 3355 | C84: 279.5833333 | D84: 3355 | E84: 3400 | F84: 45
A85: 2450 | B85: 3425 | C85: 285.4166667 | D85: 3425 | E85: 3400 | F85: -25
A86: 2500 | B86: 3495 | C86: 291.25 | D86: 3495 | E86: 3500 | F86: 5
A87: 2600 | B87: 3635 | C87: 302.9166667 | D87: 3635 | E87: 3600 | F87: -35
A88: 2700 | B88: 3775 | C88: 314.5833333 | D88: 3775 | E88: 3800 | F88: 25
A89: 2730 | B89: 3817 | C89: 318.0833333 | D89: 3817 | E89: 3800 | F89: -17
A90: 2800 | B90: 3915 | C90: 326.25 | D90: 3915 | E90: 3900 | F90: -15
A91: 2900 | B91: 4054 | C91: 337.8333333 | D91: 4054 | E91: 4100 | F91: 46
A92: 3000 | B92: 4194 | C92: 349.5 | D92: 4194 | E92: 4200 | F92: 6
A93: 3100 | B93: 4334 | C93: 361.1666667 | D93: 4334 | E93: 4300 | F93: -34
A94: 3200 | B94: 4474 | C94: 372.8333333 | D94: 4474 | E94: 4500 | F94: 26
A95: 3300 | B95: 4614 | C95: 384.5 | D95: 4614 | E95: 4600 | F95: -14
A96: 3400 | B96: 4753 | C96: 396.0833333 | D96: 4753 | E96: 4800 | F96: 47
A97: 3500 | B97: 4893 | C97: 407.75 | D97: 4893 | E97: 4900 | F97: 7
A98: 3600 | B98: 5033 | C98: 419.4166667 | D98: 5033 | E98: 5000 | F98: -33
A99: 3700 | B99: 5173 | C99: 431.0833333 | D99: 5173 | E99: 5200 | F99: 27
A100: 3800 | B100: 5313 | C100: 442.75 | D100: 5313 | E100: 5300 | F100: -13
A101: 3900 | B101: 5453 | C101: 454.4166667 | D101: 5453 | E101: 5500 | F101: 47
A102: 4000 | B102: 5592 | C102: 466 | D102: 5592 | E102: 5600 | F102: 8
A103: 4100 | B103: 5732 | C103: 477.6666667 | D103: 5732 | E103: 5700 | F103: -32
A104: 4200 | B104: 5872 | C104: 489.3333333 | D104: 5872 | E104: 5900 | F104: 28
A105: 4226.1 | B105: 5908 | C105: 492.3333333 | D105: 5908 | E105: 5900 | F105: -8
A106: 4300 | B106: 6012 | C106: 501 | D106: 6012 | E106: 6000 | F106: -12
A107: 4400 | B107: 6152 | C107: 512.6666667 | D107: 6152 | E107: 6200 | F107: 48
A108: 4430 | B108: 6193 | C108: 516.0833333 | D108: 6193 | E108: 6200 | F108: 7
A109: 4500 | B109: 6291 | C109: 524.25 | D109: 6291 | E109: 6300 | F109: 9
A110: 4600 | B110: 6431 | C110: 535.9166667 | D110: 6431 | E110: 6400 | F110: -31
A111: 4700 | B111: 6571 | C111: 547.5833333 | D111: 6571 | E111: 6600 | F111: 29
A112: 1770 | B112: 2475 | C112: 206.25 | D112: 2475 | E112: 2500 | F112: 25
A113: 4800 | B113: 6711 | C113: 559.25 | D113: 6711 | E113: 6700 | F113: -11
A114: 4900 | B114: 6851 | C114: 570.9166667 | D114: 6851 | E114: 6900 | F114: 49
A115: 4930 | B115: 6893 | C115: 574.4166667 | D115: 6893 | E115: 6900 | F115: 7
A116: 5000 | B116: 6990 | C116: 582.5 | D116: 6990 | E116: 7000 | F116: 10
A117: 5100 | B117: 7130 | C117: 594.1666667 | D117: 7130 | E117: 7100 | F117: -30
A118: 5200 | B118: 7270 | C118: =VALUE(B118)/12 -> 605.8333333 | D118: 7270 | E118: 7300 | F118: 30
A119: 5300 | B119: 7410 | C119: 617.5 | D119: 7410 | E119: 7400 | F119: -10
A120: 5318 | B120: 7435 | C120: 619.5833333 | D120: 7435 | E120: =IF(D120<1000,D120,ROUND(D120,-2)) -> 7400 | F120: -35
A121: 5400 | B121: 7550 | C121: 629.1666667 | D121: 7550 | E121: 7600 | F121: 50
A122: 5420.91 | B122: 7579 | C122: 631.5833333 | D122: 7579 | E122: 7600 | F122: 21
A123: 5500 | B123: 7689 | C123: 640.75 | D123: =B123 -> 7689 | E123: 7700 | F123: =E123-D123 -> 11
A124: 5600 | B124: 7829 | C124: 652.4166667 | D124: 7829 | E124: 7800 | F124: -29
A125: 5700 | B125: 7969 | C125: 664.0833333 | D125: 7969 | E125: 8000 | F125: 31
A126: 5770.78 | B126: 8068 | C126: 672.3333333 | D126: 8068 | E126: 8100 | F126: 32
A127: 5800 | B127: 8109 | C127: 675.75 | D127: 8109 | E127: 8100 | F127: -9
A128: 5900 | B128: 8249 | C128: 687.4166667 | D128: 8249 | E128: 8200 | F128: -49
A129: 6000 | B129: =IF(A129<1000,$B$1*A129,ROUND($B$1*A129,0)) -> 8388 | C129: 699 | D129: 8388 | E129: 8400 | F129: 12
A130: 6078 | B130: 8498 | C130: 708.1666667 | D130: 8498 | E130: 8500 | F130: 2
A131: 6100 | B131: 8528 | C131: 710.6666667 | D131: 8528 | E131: 8500 | F131: -28
A132: 6140 | B132: 8584 | C132: 715.3333333 | D132: 8584 | E132: 8600 | F132: 16
A133: 6200 | B133: 8668 | C133: 722.3333333 | D133: 8668 | E133: 8700 | F133: 32
A134: 6290.15 | B134: 8794 | C134: 732.8333333 | D134: 8794 | E134: 8800 | F134: 6
A135: 6300 | B135: 8808 | C135: 734 | D135: 8808 | E135: 8800 | F135: -8
A136: 6400 | B136: 8948 | C136: 745.6666667 | D136: 8948 | E136: 8900 | F136: -48
A137: 6500 | B137: 9088 | C137: 757.3333333 | D137: 9088 | E137: 9100 | F137: 12
A138: 6600 | B138: 9227 | C138: 768.9166667 | D138: 9227 | E138: 9200 | F138: -27
A139: 6700 | B139: 9367 | C139: 780.5833333 | D139: 9367 | E139: 9400 | F139: 33
A140: 6743.33 | B140: 9428 | C140: 785.6666667 | D140: 9428 | E140: 9400 | F140: -28
A141: 6800 | B141: 9507 | C141: 792.25 | D141: 9507 | E141: 9500 | F141: -7
A142: 6900 | B142: 9647 | C142: 803.9166667 | D142: 9647 | E142: 9600 | F142: -47
A143: 7000 | B143: 9787 | C143: 815.5833333 | D143: 9787 | E143: 9800 | F143: 13
A144: 7100 | B144: 9926 | C144: 827.1666667 | D144: 9926 | E144: 9900 | F144: -26
A145: 7200 | B145: 10066 | C145: 838.8333333 | D145: 10066 | E145: 10100 | F145: 34
A146: 7300 | B146: 10206 | C146: 850.5 | D146: 10206 | E146: 10200 | F146: -6
A147: 7335.23 | B147: 10255 | C147: 854.5833333 | D147: 10255 | E147: 10300 | F147: 45
A148: 7400 | B148: 10346 | C148: 862.1666667 | D148: 10346 | E148: 10300 | F148: -46
A149: 7500 | B149: 10486 | C149: 873.8333333 | D149: 10486 | E149: 10500 | F149: 14
A150: 7600 | B150: 10625 | C150: 885.4166667 | D150: 10625 | E150: 10600 | F150: -25
A151: 7700 | B151: 10765 | C151: 897.0833333 | D151: 10765 | E151: 10800 | F151: 35
A152: 7800 | B152: 10905 | C152: 908.75 | D152: 10905 | E152: 10900 | F152: -5
A153: 7900 | B153: 11045 | C153: 920.4166667 | D153: 11045 | E153: 11000 | F153: -45
A154: 8000 | B154: 11185 | C154: 932.0833333 | D154: 11185 | E154: 11200 | F154: 15
A155: 8100 | B155: 11324 | C155: 943.6666667 | D155: 11324 | E155: 11300 | F155: -24
A156: 8200 | B156: 11464 | C156: 955.3333333 | D156: 11464 | E156: 11500 | F156: 36
A157: 8300 | B157: 11604 | C157: 967 | D157: 11604 | E157: 11600 | F157: -4
A158: 8400 | B158: 11744 | C158: 978.6666667 | D158: 11744 | E158: 11700 | F158: -44
A159: 8500 | B159: 11884 | C159: 990.3333333 | D159: 11884 | E159: 11900 | F159: 16
A160: 8600 | B160: 12023 | C160: 1001.916667 | D160: 12023 | E160: 12000 | F160: -23
A161: 8700 | B161: 12163 | C161: 1013.583333 | D161: 12163 | E161: 12200 | F161: 37
A162: 8800 | B162: 12303 | C162: 1025.25 | D162: 12303 | E162: 12300 | F162: -3
A163: 8900 | B163: 12443 | C163: 1036.916667 | D163: 12443 | E163: 12400 | F163: -43
A164: 9000 | B164: 12583 | C164: 1048.583333 | D164: 12583 | E164: 12600 | F164: 17
A165: 9100 | B165: 12723 | C165: 1060.25 | D165: 12723 | E165: 12700 | F165: -23
A166: 9200 | B166: 12862 | C166: 1071.833333 | D166: 12862 | E166: 12900 | F166: 38
A167: 9300 | B167: 13002 | C167: 1083.5 | D167: 13002 | E167: 13000 | F167: -2
A168: 9400 | B168: 13142 | C168: 1095.166667 | D168: 13142 | E168: 13100 | F168: -42
A169: 9450 | B169: 13212 | C169: 1101 | D169: 13212 | E169: 13200 | F169: -12
A170: 9500 | B170: 13282 | C170: 1106.833333 | D170: 13282 | E170: 13300 | F170: 18
A171: 9600 | B171: 13422 | C171: 1118.5 | D171: 13422 | E171: 13400 | F171: -22
A172: 9700 | B172: 13561 | C172: 1130.083333 | D172: 13561 | E172: 13600 | F172: 39
A173: 9800 | B173: 13701 | C173: 1141.75 | D173: 13701 | E173: 13700 | F173: -1
A174: 9900 | B174: 13841 | C174: 1153.416667 | D174: 13841 | E174: 13800 | F174: -41
A175: 10000 | B175: 13981 | C175: 1165.083333 | D175: 13981 | E175: 14000 | F175: 19
A176: 10600 | B176: 14820 | C176: 1235 | D176: 14820 | E176: 14800 | F176: -20
A177: 10800 | B177: 15099 | C177: 1258.25 | D177: 15099 | E177: 15100 | F177: 1
A178: 11000 | B178: 15379 | C178: 1281.583333 | D178: 15379 | E178: 15400 | F178: 21
A179: 11200 | B179: 15658 | C179: 1304.833333 | D179: 15658 | E179: 15700 | F179: 42
A180: 11300 | B180: 15798 | C180: 1316.5 | D180: 15798 | E180: 15800 | F180: 2
A181: 11500 | B181: 16078 | C181: 1339.833333 | D181: 16078 | E181: 16100 | F181: 22
A182: 11600 | B182: 16218 | C182: =VALUE(B182)/12 -> 1351.5 | D182: 16218 | E182: 16200 | F182: -18
A183: 11700 | B183: 16358 | C183: 1363.166667 | D183: 16358 | E183: 16400 | F183: 42
A184: 11800 | B184: 16497 | C184: 1374.75 | D184: 16497 | E184: =IF(D184<1000,D184,ROUND(D184,-2)) -> 16500 | F184: 3
A185: 11900 | B185: 16637 | C185: 1386.416667 | D185: 16637 | E185: 16600 | F185: -37
A186: 12000 | B186: 16777 | C186: 1398.083333 | D186: 16777 | E186: 16800 | F186: 23
A187: 12100 | B187: 16917 | C187: 1409.75 | D187: =B187 -> 16917 | E187: 16900 | F187: =E187-D187 -> -17
A188: 12200 | B188: 17057 | C188: 1421.416667 | D188: 17057 | E188: 17100 | F188: 43
A189: 12300 | B189: 17196 | C189: 1433 | D189: 17196 | E189: 17200 | F189: 4
A190: 12400 | B190: 17336 | C190: 1444.666667 | D190: 17336 | E190: 17300 | F190: -36
A191: 12500 | B191: 17476 | C191: 1456.333333 | D191: 17476 | E191: 17500 | F191: 24
A192: 12600 | B192: 17616 | C192: 1468 | D192: 17616 | E192: 17600 | F192: -16
A193: 12700 | B193: =IF(A193<1000,$B$1*A193,ROUND($B$1*A193,0)) -> 17756 | C193: 1479.666667 | D193: 17756 | E193: 17800 | F193: 44
A194: 12800 | B194: 17895 | C194: 1491.25 | D194: 17895 | E194: 17900 | F194: 5
A195: 12900 | B195: 18035 | C195: 1502.916667 | D195: 18035 | E195: 18000 | F195: -35
A196: 13000 | B196: 18175 | C196: 1514.583333 | D196: 18175 | E196: 18200 | F196: 25
A197: 13200 | B197: 18455 | C197: 1537.916667 | D197: 18455 | E197: 18500 | F197: 45
A198: 13400 | B198: 18734 | C198: 1561.166667 | D198: 18734 | E198: 18700 | F198: -34
A199: 13500 | B199: 18874 | C199: 1572.833333 | D199: 18874 | E199: 18900 | F199: 26
A200: 13700 | B200: 19154 | C200: 1596.166667 | D200: 19154 | E200: 19200 | F200: 46
... 195 more rows

Sheet reguleringsprocenter (hidden)
B2: Reguleringsprocenter | D2: pensionsudbygning
B3: Valgt: | C3: =VLOOKUP(Forside!K11,reguleringsprocenter!B4:D15,2,TRUE) -> 1.456933
B4: 2019-04-01 | C4: 1.377253 | D4: 1
B5: 2019-10-01 | C5: 1.390861 | D5: 1
B6: 2020-01-01 | C6: 1.412411 | D6: 1
B7: 2020-04-01 | C7: 1.417798 | D7: 1
B8: 2020-10-01 | C8: 1.428511 | D8: 1
B9: 2021-04-01 | C9: 1.442796 | D9: 1
B10: 2021-10-01 | C10: 1.456933 | D10: 1
B11: 2022-04-01 | C11: 1.456933 | D11: 1
B12: 2022-10-01 | C12: 1.494018 | D12: 1
B13: 2023-04-01 | C13: 1.498304 | D13: 1
D14: 1
B18: Liste, opslag niveauer
B20: 2023-04-01
B21: 2022-10-01
B22: 2022-04-01
B23: 2021-10-01
B24: 2021-04-01
B25: 2020-10-01
B26: 2020-04-01
B27: 2020-01-01
B28: 2019-10-01
B29: 2019-04-01

Sheet Lønark (hidden)
A1: 1 | B1: 2 | C1: 3 | D1: 4 | E1: 5 | F1: 6 | G1: 7 | H1: 8 | I1: 9 | J1: 10 | K1: 11 | L1: 12 | M1: 13 | N1: 14 | O1: 15 | P1: 16 | Q1: 17 | R1: 18 | S1: 19 | T1: 20 | U1: 21 | V1: 22 | W1: 23 | X1: 24 | Y1: 25 | Z1: 26 | AA1: 27 | AB1: 28 | AC1: 29 | AD1: 30 | AE1: 31 | AF1: 32 | AG1: 33 | AH1: 34 | AI1: 35 | AJ1: 36 | AK1: 37 | AL1: 38 | AM1: 39 | AN1: 40 | AO1: 41 | AP1: 42 | AQ1: 43 | AR1: 44 | AS1: 45 | AT1: 46 | AU1: 47 | AV1: 48 | AW1: 49 | AX1: 50 | AY1: 51 | AZ1: 52 | BA1: 53 | BB1: 54 | BC1: 55 | BD1: 56
A2: Næstved | X2: Løn | Y2: Årsløn | AB2: Ureguleret ikke-pensionsgivende tillæg | AF2: Årsløn ialt | CH2: Lavtlønsprojekt
X3: Løn | Y3: Årsløn | AB3: Ureguleret ikke-pensionsgivende tillæg | AL3: Områdetillæg inkl. regulering | AQ3: Årsløn ialt | AW3: Pensionsgivende løn | BF3: Pensionsgivende løn | BL3: Løn | BM3: timelønninger | BS3: Løn | BT3: timelønninger + 50% | BZ3: Løn | CA3: søndagstillæg - 50% | CH3: 2019-03-31 | CI3: 0 | CJ3: 0
B4: Månedsløn, løngrupper | E4: Lønniveau: | F4: =VLOOKUP(beregningsdato,regpct_tabel,1,TRUE) -> 2022-04-01 | H4: Optrapning fra: | M4: Pensionsgivende løn | S4: Pensionsgivende løn, optrapning fra: | X4: trin | Y4: Grundsats | Z4: %-reg. | AA4: Sats | AB4: Omr 1 | AC4: Omr 2 | AD4: Omr 3 | AE4: Omr 4 | AL4: 1 | AM4: 2 | AN4: 3 | AO4: 4 | AQ4: Omr 0 | AR4: Omr 1 | AS4: Omr 2 | AT4: Omr 3 | AU4: Omr 4 | AW4: Grundsats | AX4: %-reg. | AY4: Sats | BA4: Pensionsudbygningspct: | BD4: =VLOOKUP(F4,regpct_tabel,3,FALSE) -> 1 | BF4: Omr 0 | BG4: Omr 1 | BH4: Omr 2 | BI4: Omr 3 | BJ4: Omr 4 | BL4: trin | BM4: Omr 0 | BN4: Omr 1 | BO4: Omr 2 | BP4: Omr 3 | BQ4: Omr 4 | BS4: trin | BT4: Omr 0 | BU4: Omr 1 | BV4: Omr 2 | BW4: Omr 3 | BX4: Omr 4 | BZ4: trin | CA4: Omr 0 | CB4: Omr 1 | CC4: Omr 2 | CD4: Omr 3 | CE4: Omr 4 | CH4: 2019-04-01 | CI4: 382 | CJ4: 0
B5: 0 | C5: 1 | D5: 2 | E5: 3 | F5: 4 | H5: 0->1 | I5: 1->2 | J5: 2->3 | M5: 0 | N5: 1 | O5: 2 | P5: 3 | Q5: 4 | S5: 0->1 | T5: 1->2 | U5: 2->3 | V5: 3->4 | Y5: =VLOOKUP(beregningsdato,Lavtløn,2,TRUE) -> 1035 | Z5: =valgt_regulering-1 -> 0.456933 | AA5: 2019-04-01 | AB5: 2022-04-01 | AC5: =VLOOKUP(beregningsdato,Lavtløn,3,TRUE) -> 653 | AL5: =IF(beregningsdato<40087,0,regulering) -> 0.456933 | AM5: =IF(beregningsdato<40087,0,5) -> 5 | CH5: 2022-04-01 | CI5: =CI4+CJ5 -> 1035 | CJ5: 653
A6: 1 | B6: =AQ6/12 -> 17871 | C6: 18123.75 | D6: 18298.75 | E6: 18551.66667 | F6: 18726.58333 | H6: =ROUND(AQ6+(AR6-AQ6)/3*faktor,0)/12 -> 19101759.75 | I6: =ROUND(AR6+(AS6-AR6)/3*faktor,0)/12 -> 13231498.75 | J6: =ROUND(AS6+(AT6-AS6)/3*faktor,0)/12 -> 19114771.67 | L6: 1 | M6: =BF6/12 -> 17871 | N6: 18123.75 | O6: 18298.75 | P6: 18551.66667 | Q6: 18726.58333 | S6: =(BF6+ROUND((BG6-BF6)/3*faktor,0))/12 -> 19101759.75 | T6: =(BG6+ROUND((BH6-BG6)/3*faktor,0))/12 -> 13231498.75 | U6: =(BH6+ROUND((BI6-BH6)/3*faktor,0))/12 -> 19114771.67 | V6: =(BI6+ROUND((BJ6-BI6)/3*faktor,0))/12 -> 13225634.58 | X6: 1 | Y6: 147194 | Z6: =ROUND(Y6*regulering,0) -> 67258 | AA6: =Y6+Z6 -> 214452 | AB6: 2585 | AC6: 4374 | AD6: 6959 | AE6: 8748 | AG6: 2082 | AH6: 3523 | AI6: 5606 | AJ6: 7047 | AL6: =ROUND(VLOOKUP($X6,$X:$AJ,(4+AL$4)+$AM$5)*(1+$AL$5),0) -> 3033 | AM6: 5133 | AN6: 8168 | AO6: 10267 | AQ6: =$AA6 -> 214452 | AR6: =$AA6+AL6 -> 217485 | AS6: 219585 | AT6: 222620 | AU6: 224719 | AW6: 147194 | AX6: =AW6*regulering -> 67257.796 | AY6: =ROUND(SUM(AW6:AX6),0) -> 214452 | BA6: =ROUND(AL6*udbygningspct,0) -> 3033 | BB6: =ROUND(AM6*udbygningspct,0) -> 5133 | BC6: =ROUND(AN6*udbygningspct,0) -> 8168 | BD6: =ROUND(AO6*udbygningspct,0) -> 10267 | BF6: =AY6 -> 214452 | BG6: =$BF6+BA6 -> 217485 | BH6: =$BF6+BB6 -> 219585 | BI6: 222620 | BJ6: 224719 | BL6: 1 | BM6: =AQ6/1924 -> 111.4615385 | BN6: 113.0379418 | BO6: 114.1294179 | BP6: 115.7068607 | BQ6: 116.797817 | BS6: 1 | BT6: =AQ6/1924*1.5 -> 167.1923077 | BU6: =AR6/1924*1.5 -> 169.5569127 | BV6: =AS6/1924*1.5 -> 171.1941268 | BW6: =AT6/1924*1.5 -> 173.5602911 | BX6: =AU6/1924*1.5 -> 175.1967256 | BZ6: 1 | CA6: =AQ6/1924/2 -> 55.73076923 | CB6: 56.51897089 | CC6: 57.06470894 | CD6: 57.85343035 | CE6: 58.39890852
A7: 2 | B7: 18145.5 | C7: 18404.5 | D7: 18583.66667 | E7: 18842.66667 | F7: 19021.83333 | H7: 19573940.5 | I7: 13546383.67 | J7: 19574378.67 | L7: 2 | M7: 18145.5 | N7: 18404.5 | O7: 18583.66667 | P7: 18842.66667 | Q7: 19021.83333 | S7: 19573940.5 | T7: 13546383.67 | U7: 19574378.67 | V7: 13546821.83 | X7: 2 | Y7: 149455 | Z7: 68291 | AA7: 217746 | AB7: 2648 | AC7: 4481 | AD7: 7128 | AE7: 8961 | AG7: 2133 | AH7: 3609 | AI7: 5742 | AJ7: 7218 | AL7: 3108 | AM7: 5258 | AN7: 8366 | AO7: 10516 | AQ7: =$AA7 -> 217746 | AR7: 220854 | AS7: 223004 | AT7: 226112 | AU7: 228262 | AW7: 149455 | AX7: =AW7*regulering -> 68290.92152 | AY7: =ROUND(SUM(AW7:AX7),0) -> 217746 | BA7: 3108 | BB7: 5258 | BC7: 8366 | BD7: 10516 | BF7: =AY7 -> 217746 | BG7: 220854 | BH7: 223004 | BI7: 226112 | BJ7: 228262 | BL7: 2 | BM7: 113.1735967 | BN7: 114.7889813 | BO7: 115.9064449 | BP7: 117.5218295 | BQ7: 118.6392931 | BS7: 2 | BT7: =AQ7/1924*1.5 -> 169.760395 | BU7: 172.1834719 | BV7: 173.8596674 | BW7: 176.2827443 | BX7: 177.9589397 | BZ7: 2 | CA7: 56.58679834 | CB7: 57.39449064 | CC7: 57.95322245 | CD7: 58.76091476 | CE7: 59.31964657
A8: 3 | B8: 18427.41667 | C8: 18692.58333 | D8: 18876.25 | E8: 19141.41667 | F8: 19325.25 | H8: 20039836.58 | I8: 13886444.25 | J8: 20040285.42 | L8: 3 | M8: 18427.41667 | N8: 18692.58333 | O8: 18876.25 | P8: 19141.41667 | Q8: 19325.25 | S8: 20039836.58 | T8: 13886444.25 | U8: 20040285.42 | V8: 13899477.25 | X8: 3 | Y8: 151777 | Z8: 69352 | AA8: 221129 | AB8: 2711 | AC8: 4590 | AD8: 7301 | AE8: 9180 | AG8: 2184 | AH8: 3697 | AI8: 5881 | AJ8: 7395 | AL8: 3182 | AM8: 5386 | AN8: 8568 | AO8: 10774 | AQ8: 221129 | AR8: 224311 | AS8: 226515 | AT8: 229697 | AU8: 231903 | AW8: 151777 | AX8: 69351.91994 | AY8: 221129 | BA8: 3182 | BB8: 5386 | BC8: 8568 | BD8: 10774 | BF8: 221129 | BG8: 224311 | BH8: 226515 | BI8: 229697 | BJ8: 231903 | BL8: 3 | BM8: 114.9319127 | BN8: 116.5857588 | BO8: 117.731289 | BP8: 119.3851351 | BQ8: 120.5317048 | BS8: 3 | BT8: 172.397869 | BU8: 174.8786383 | BV8: 176.5969335 | BW8: 179.0777027 | BX8: 180.7975572 | BZ8: 3 | CA8: 57.46595634 | CB8: 58.29287942 | CC8: 58.86564449 | CD8: 59.69256757 | CE8: 60.26585239
A9: 4 | B9: 18717.08333 | C9: 18988.91667 | D9: 19177 | E9: 19448.83333 | F9: 19636.91667 | H9: 20543492.92 | I9: 14220221 | J9: 20543952.83 | L9: 4 | M9: 18717.08333 | N9: 18988.91667 | O9: 19177 | P9: 19448.83333 | Q9: 19636.91667 | S9: 20543492.92 | T9: 14220221 | U9: 20543952.83 | V9: 14220680.92 | X9: 4 | Y9: 154163 | Z9: 70442 | AA9: 224605 | AB9: 2779 | AC9: 4703 | AD9: 7482 | AE9: 9405 | AG9: 2239 | AH9: 3788 | AI9: 6027 | AJ9: 7576 | AL9: 3262 | AM9: 5519 | AN9: 8781 | AO9: 11038 | AQ9: 224605 | AR9: 227867 | AS9: 230124 | AT9: 233386 | AU9: 235643 | AW9: 154163 | AX9: 70442.16208 | AY9: 224605 | BA9: 3262 | BB9: 5519 | BC9: 8781 | BD9: 11038 | BF9: 224605 | BG9: 227867 | BH9: 230124 | BI9: 233386 | BJ9: 235643 | BL9: 4 | BM9: 116.7385655 | BN9: 118.4339917 | BO9: 119.6070686 | BP9: 121.3024948 | BQ9: 122.4755717 | BS9: 4 | BT9: 175.1078482 | BU9: 177.6509875 | BV9: 179.4106029 | BW9: 181.9537422 | BX9: 183.7133576 | BZ9: 4 | CA9: 58.36928274 | CB9: 59.21699584 | CC9: 59.8035343 | CD9: 60.6512474 | CE9: 61.23778586
A10: 5 | B10: 19014.66667 | C10: 19293.08333 | D10: 19486 | E10: 19764.41667 | F10: 19957.08333 | H10: 21040865.08 | I10: 14585466 | J10: 21041336.42 | L10: 5 | M10: 19014.66667 | N10: 19293.08333 | O10: 19486 | P10: 19764.41667 | Q10: 19957.08333 | S10: 21040865.08 | T10: 14585466 | U10: 21041336.42 | V10: 14567061.08 | X10: 5 | Y10: 156614 | Z10: 71562 | AA10: 228176 | AB10: 2847 | AC10: 4819 | AD10: 7666 | AE10: 9636 | AG10: 2293 | AH10: 3882 | AI10: 6175 | AJ10: 7762 | AL10: 3341 | AM10: 5656 | AN10: 8997 | AO10: 11309 | AQ10: 228176 | AR10: 231517 | AS10: 233832 | AT10: 237173 | AU10: 239485 | AW10: 156614 | AX10: 71562.10486 | AY10: 228176 | BA10: 3341 | BB10: 5656 | BC10: 8997 | BD10: 11309 | BF10: 228176 | BG10: 231517 | BH10: 233832 | BI10: 237173 | BJ10: 239485 | BL10: 5 | BM10: 118.5945946 | BN10: 120.3310811 | BO10: 121.5343035 | BP10: 123.27079 | BQ10: 124.4724532 | BS10: 5 | BT10: 177.8918919 | BU10: 180.4966216 | BV10: 182.3014553 | BW10: 184.906185 | BX10: 186.7086798 | BZ10: 5 | CA10: 59.2972973 | CB10: 60.16554054 | CC10: 60.76715177 | CD10: 61.63539501 | CE10: 62.23622661
A11: 6 | B11: 19320.75 | C11: 19606.08333 | D11: 19803.58333 | E11: 20088.83333 | F11: 20286.33333 | H11: 21563414.08 | I11: 14931843.58 | J11: 21557604.83 | L11: 6 | M11: 19320.75 | N11: 19606.08333 | O11: 19803.58333 | P11: 20088.83333 | Q11: 20286.33333 | S11: 21563414.08 | T11: 14931843.58 | U11: 21557604.83 | V11: 14932326.33 | X11: 6 | Y11: 159135 | Z11: 72714 | AA11: 231849 | AB11: 2917 | AC11: 4937 | AD11: 7854 | AE11: 9873 | AG11: 2350 | AH11: 3977 | AI11: 6326 | AJ11: 7953 | AL11: 3424 | AM11: 5794 | AN11: 9217 | AO11: 11587 | AQ11: 231849 | AR11: 235273 | AS11: 237643 | AT11: 241066 | AU11: 243436 | AW11: 159135 | AX11: 72714.03296 | AY11: 231849 | BA11: 3424 | BB11: 5794 | BC11: 9217 | BD11: 11587 | BF11: 231849 | BG11: 235273 | BH11: 237643 | BI11: 241066 | BJ11: 243436 | BL11: 6 | BM11: 120.5036383 | BN11: 122.283264 | BO11: 123.5150728 | BP11: 125.2941788 | BQ11: 126.5259875 | BS11: 6 | BT11: 180.7554574 | BU11: 183.424896 | BV11: 185.2726091 | BW11: 187.9412682 | BX11: 189.7889813 | BZ11: 6 | CA11: 60.25181913 | CB11: 61.14163202 | CC11: 61.75753638 | CD11: 62.6470894 | CE11: 63.26299376
A12: 7 | B12: 19634.75 | C12: 19927.08333 | D12: 20129.58333 | E12: 20422 | F12: 20624.25 | H12: 22092263.08 | I12: 15309689.58 | J12: 22099050 | L12: 7 | M12: 19634.75 | N12: 19927.08333 | O12: 20129.58333 | P12: 20422 | Q12: 20624.25 | S12: 22092263.08 | T12: 15309689.58 | U12: 22099050 | V12: 15291308.25 | X12: 7 | Y12: 161721 | Z12: 73896 | AA12: 235617 | AB12: 2989 | AC12: 5060 | AD12: 8049 | AE12: 10118 | AG12: 2408 | AH12: 4076 | AI12: 6484 | AJ12: 8150 | AL12: 3508 | AM12: 5938 | AN12: 9447 | AO12: 11874 | AQ12: 235617 | AR12: 239125 | AS12: 241555 | AT12: 245064 | AU12: 247491 | AW12: 161721 | AX12: 73895.66169 | AY12: 235617 | BA12: 3508 | BB12: 5938 | BC12: 9447 | BD12: 11874 | BF12: 235617 | BG12: 239125 | BH12: 241555 | BI12: 245064 | BJ12: 247491 | BL12: 7 | BM12: 122.4620582 | BN12: 124.285343 | BO12: 125.5483368 | BP12: 127.3721414 | BQ12: 128.6335759 | BS12: 7 | BT12: 183.6930873 | BU12: 186.4280146 | BV12: 188.3225052 | BW12: 191.0582121 | BX12: 192.9503638 | BZ12: 7 | CA12: 61.23102911 | CB12: 62.14267152 | CC12: 62.7741684 | CD12: 63.68607069 | CE12: 64.31678794
A13: 8 | B13: 19969.33333 | C13: 20269.25 | D13: 20476.91667 | E13: 20776.75 | F13: 20984.33333 | H13: 22665177.25 | I13: 15700140.92 | J13: 22659392.75 | L13: 8 | M13: 19969.33333 | N13: 20269.25 | O13: 20476.91667 | P13: 20776.75 | Q13: 20984.33333 | S13: 22665177.25 | T13: 15700140.92 | U13: 22659392.75 | V13: 15694356.33 | X13: 8 | Y13: 164477 | Z13: 75155 | AA13: 239632 | AB13: 3067 | AC13: 5190 | AD13: 8256 | AE13: 10379 | AG13: 2470 | AH13: 4181 | AI13: 6650 | AJ13: 8360 | AL13: 3599 | AM13: 6091 | AN13: 9689 | AO13: 12180 | AQ13: 239632 | AR13: 243231 | AS13: 245723 | AT13: 249321 | AU13: 251812 | AW13: 164477 | AX13: 75154.96904 | AY13: 239632 | BA13: 3599 | BB13: 6091 | BC13: 9689 | BD13: 12180 | BF13: 239632 | BG13: 243231 | BH13: 245723 | BI13: 249321 | BJ13: 251812 | BL13: 8 | BM13: 124.5488565 | BN13: 126.4194387 | BO13: 127.714657 | BP13: 129.5847193 | BQ13: 130.8794179 | BS13: 8 | BT13: 186.8232848 | BU13: 189.629158 | BV13: 191.5719854 | BW13: 194.377079 | BX13: 196.3191268 | BZ13: 8 | CA13: 62.27442827 | CB13: 63.20971933 | CC13: 63.85732848 | CD13: 64.79235967 | CE13: 65.43970894
A14: 9 | B14: 20597.5 | C14: 20904.91667 | D14: 21117.66667 | E14: 21424.91667 | F14: 21637.75 | H14: =ROUND(AQ14+(AR14-AQ14)/3*faktor,0)/12 -> 23232092.92 | I14: =ROUND(AR14+(AS14-AR14)/3*faktor,0)/12 -> 16084593.67 | J14: =ROUND(AS14+(AT14-AS14)/3*faktor,0)/12 -> 23220028.92 | L14: 9 | M14: 20597.5 | N14: 20904.91667 | O14: 21117.66667 | P14: 21424.91667 | Q14: 21637.75 | S14: =(BF14+ROUND((BG14-BF14)/3*faktor,0))/12 -> 23232092.92 | T14: =(BG14+ROUND((BH14-BG14)/3*faktor,0))/12 -> 16084593.67 | U14: =(BH14+ROUND((BI14-BH14)/3*faktor,0))/12 -> 23220028.92 | V14: =(BI14+ROUND((BJ14-BI14)/3*faktor,0))/12 -> 16091405.75 | X14: 9 | Y14: 169651 | Z14: 77519 | AA14: 247170 | AB14: 3143 | AC14: 5319 | AD14: 8461 | AE14: 10637 | AG14: 2532 | AH14: 4284 | AI14: 6815 | AJ14: 8568 | AL14: 3689 | AM14: 6242 | AN14: 9929 | AO14: 12483 | AP14: =AR14/12 -> 20904.91667 | AQ14: 247170 | AR14: =ROUND($AA14+AL14,0) -> 250859 | AS14: =$AA14+AM14 -> 253412 | AT14: =$AA14+AN14 -> 257099 | AU14: =$AA14+AO14 -> 259653 | AW14: 169651 | AX14: 77519.14038 | AY14: 247170 | BA14: 3689 | BB14: 6242 | BC14: 9929 | BD14: 12483 | BF14: 247170 | BG14: 250859 | BH14: 253412 | BI14: 257099 | BJ14: 259653 | BL14: 9 | BM14: 128.466736 | BN14: 130.3840956 | BO14: 131.7110187 | BP14: 133.6273389 | BQ14: 134.9547817 | BS14: 9 | BT14: 192.700104 | BU14: 195.5761435 | BV14: 197.5665281 | BW14: 200.4410083 | BX14: 202.4321726 | BZ14: 9 | CA14: 64.23336798 | CB14: 65.19204782 | CC14: 65.85550936 | CD14: 66.81366944 | CE14: 67.47739085
A15: 10 | B15: 20743 | C15: 21058.08333 | D15: 21276.08333 | E15: 21591.08333 | F15: 21809.25 | H15: 23811110.08 | I15: 16481148.08 | J15: 23805351.08 | L15: 10 | M15: 20743 | N15: 21058.08333 | O15: 21276.08333 | P15: 21591.08333 | Q15: 21809.25 | S15: 23811110.08 | T15: 16481148.08 | U15: 23805351.08 | V15: 16494265.25 | X15: 10 | Y15: 170849 | Z15: 78067 | AA15: 248916 | AB15: 3221 | AC15: 5451 | AD15: 8672 | AE15: 10903 | AG15: 2595 | AH15: 4391 | AI15: 6985 | AJ15: 8782 | AL15: 3781 | AM15: 6397 | AN15: 10177 | AO15: 12795 | AQ15: 248916 | AR15: =$AA15+AL15 -> 252697 | AS15: 255313 | AT15: 259093 | AU15: 261711 | AW15: 170849 | AX15: 78066.54612 | AY15: 248916 | BA15: 3781 | BB15: 6397 | BC15: 10177 | BD15: 12795 | BF15: 248916 | BG15: 252697 | BH15: 255313 | BI15: 259093 | BJ15: 261711 | BL15: 10 | BM15: 129.3742204 | BN15: 131.3393971 | BO15: 132.6990644 | BP15: 134.6637214 | BQ15: 136.0244283 | BS15: 10 | BT15: 194.0613306 | BU15: 197.0090956 | BV15: 199.0485967 | BW15: 201.9955821 | BX15: 204.0366424 | BZ15: 10 | CA15: 64.68711019 | CB15: 65.66969854 | CC15: 66.34953222 | CD15: 67.33186071 | CE15: 68.01221414
A16: 11 | B16: 21137.91667 | C16: 21460.75 | D16: 21684.41667 | E16: 22007.25 | F16: 22230.83333 | H16: 24396668.75 | I16: 16909412.42 | J16: 24397215.25 | L16: 11 | M16: 21137.91667 | N16: 21460.75 | O16: 21684.41667 | P16: 22007.25 | Q16: 22230.83333 | S16: 24396668.75 | T16: 16909412.42 | U16: 24397215.25 | V16: 16903666.83 | X16: 11 | Y16: 173067 | Z16: =IF(beregningsdato>=$AA$5,ROUND((Y16+$Y$5)*regulering,0),ROUND(Y16*regulering,0)) -> 79553 | AA16: =IF(beregningsdato>=$AA$5,SUM($Y$5,Y16:Z16),SUM(Y16:Z16)) -> 253655 | AB16: 3301 | AC16: 5588 | AD16: 8889 | AE16: 11175 | AF16: 2659 | AG16: 2659 | AH16: 4501 | AI16: 7160 | AJ16: 9002 | AL16: 3874 | AM16: 6558 | AN16: 10432 | AO16: 13115 | AQ16: 253655 | AR16: 257529 | AS16: 260213 | AT16: 264087 | AU16: 266770 | AW16: 173067 | AX16: =IF(beregningsdato>=$AA$5,ROUND((AW16+$Y$5)*regulering,0),ROUND(AW16*regulering,0)) -> 79553 | AY16: =IF(beregningsdato>=$AA$5,SUM($Y$5,AW16:AX16),SUM(AW16:AX16)) -> 253655 | BA16: 3874 | BB16: 6558 | BC16: 10432 | BD16: 13115 | BF16: 253655 | BG16: 257529 | BH16: 260213 | BI16: 264087 | BJ16: 266770 | BL16: 11 | BM16: 131.8373181 | BN16: 133.8508316 | BO16: 135.245842 | BP16: 137.2593555 | BQ16: 138.6538462 | BS16: 11 | BT16: 197.7559771 | BU16: 200.7762474 | BV16: 202.868763 | BW16: 205.8890333 | BX16: 207.9807692 | BZ16: 11 | CA16: 65.91865904 | CB16: 66.9254158 | CC16: 67.622921 | CD16: 68.62967775 | CE16: 69.32692308
A17: 12 | B17: 21497.91667 | C17: 21828.91667 | D17: 22058 | E17: 22389.08333 | F17: 22618.16667 | H17: 25013652.92 | I17: 17318766 | J17: 25020505.08 | L17: 12 | M17: 21497.91667 | N17: 21828.91667 | O17: 22058 | P17: 22389.08333 | Q17: 22618.16667 | S17: 25013652.92 | T17: 17318766 | U17: 25020505.08 | V17: 17319326.17 | X17: 12 | Y17: 176032 | Z17: =IF(beregningsdato>=$AA$5,ROUND((Y17+$Y$5)*regulering,0),ROUND(Y17*regulering,0)) -> 80908 | AA17: 257975 | AB17: 3384 | AC17: 5727 | AD17: 9112 | AE17: 11455 | AF17: 2726 | AG17: 2726 | AH17: 4613 | AI17: 7340 | AJ17: 9227 | AL17: 3972 | AM17: 6721 | AN17: 10694 | AO17: 13443 | AQ17: 257975 | AR17: 261947 | AS17: 264696 | AT17: 268669 | AU17: 271418 | AW17: 176032 | AX17: =IF(beregningsdato>=$AA$5,ROUND((AW17+$Y$5)*regulering,0),ROUND(AW17*regulering,0)) -> 80908 | AY17: 257975 | BA17: 3972 | BB17: 6721 | BC17: 10694 | BD17: 13443 | BF17: 257975 | BG17: 261947 | BH17: 264696 | BI17: 268669 | BJ17: 271418 | BL17: 12 | BM17: 134.0826403 | BN17: 136.1470894 | BO17: 137.5758836 | BP17: 139.6408524 | BQ17: 141.0696466 | BS17: 12 | BT17: 201.1239605 | BU17: 204.2206341 | BV17: 206.3638254 | BW17: 209.4612786 | BX17: 211.6044699 | BZ17: 12 | CA17: 67.04132017 | CB17: 68.0735447 | CC17: 68.78794179 | CD17: 69.8204262 | CE17: 70.53482328
A18: 13 | B18: 21868.08333 | C18: 22207.41667 | D18: 22442.33333 | E18: 22781.66667 | F18: 23016.66667 | H18: 25643231.42 | I18: 17759590.33 | J18: 25643805.67 | L18: 13 | M18: 21868.08333 | N18: 22207.41667 | O18: 22442.33333 | P18: 22781.66667 | Q18: 23016.66667 | S18: 25643231.42 | T18: 17759590.33 | U18: 25643805.67 | V18: 17766456.67 | X18: 13 | Y18: 179081 | Z18: =IF(beregningsdato>=$AA$5,ROUND((Y18+$Y$5)*regulering,0),ROUND(Y18*regulering,0)) -> 82301 | AA18: 262417 | AB18: 3470 | AC18: 5872 | AD18: 9342 | AE18: 11744 | AF18: 2795 | AG18: 2795 | AH18: 4730 | AI18: 7525 | AJ18: 9460 | AL18: 4072 | AM18: 6891 | AN18: 10963 | AO18: 13783 | AQ18: 262417 | AR18: 266489 | AS18: 269308 | AT18: 273380 | AU18: 276200 | AW18: 179081 | AX18: =IF(beregningsdato>=$AA$5,ROUND((AW18+$Y$5)*regulering,0),ROUND(AW18*regulering,0)) -> 82301 | AY18: 262417 | BA18: 4072 | BB18: 6891 | BC18: 10963 | BD18: 13783 | BF18: 262417 | BG18: 266489 | BH18: 269308 | BI18: 273380 | BJ18: 276200 | BL18: 13 | BM18: 136.3913721 | BN18: 138.5077963 | BO18: 139.972973 | BP18: 142.0893971 | BQ18: 143.5550936 | BS18: 13 | BT18: 204.5870582 | BU18: 207.7616944 | BV18: 209.9594595 | BW18: 213.1340956 | BX18: 215.3326403 | BZ18: 13 | CA18: 68.19568607 | CB18: 69.25389813 | CC18: 69.98648649 | CD18: 71.04469854 | CE18: 71.77754678
A19: 14 | B19: 22248.5 | C19: 22596.33333 | D19: 22837.08333 | E19: 23185.08333 | F19: 23425.91667 | H19: 26285404.33 | I19: 18200425.08 | J19: 26298577.08 | L19: 14 | M19: 22248.5 | N19: 22596.33333 | O19: 22837.08333 | P19: 23185.08333 | Q19: 23425.91667 | S19: 26285404.33 | T19: 18200425.08 | U19: 26298577.08 | V19: 18207305.92 | X19: 14 | Y19: 182214 | Z19: 83733 | AA19: 266982 | AB19: 3557 | AC19: 6019 | AD19: 9577 | AE19: 12039 | AF19: 2865 | AG19: 2865 | AH19: 4848 | AI19: 7714 | AJ19: 9698 | AL19: 4174 | AM19: 7063 | AN19: 11239 | AO19: 14129 | AQ19: 266982 | AR19: 271156 | AS19: 274045 | AT19: 278221 | AU19: 281111 | AW19: 182214 | AX19: 83733 | AY19: 266982 | BA19: 4174 | BB19: 7063 | BC19: 11239 | BD19: 14129 | BF19: 266982 | BG19: 271156 | BH19: 274045 | BI19: 278221 | BJ19: 281111 | BL19: 14 | BM19: 138.7640333 | BN19: 140.9334719 | BO19: 142.4350312 | BP19: 144.6055094 | BQ19: 146.1075884 | BS19: 14 | BT19: 208.1460499 | BU19: 211.4002079 | BV19: 213.6525468 | BW19: 216.908264 | BX19: 219.1613825 | BZ19: 14 | CA19: 69.38201663 | CB19: 70.46673597 | CC19: 71.21751559 | CD19: 72.30275468 | CE19: 73.05379418
A20: 15 | B20: 22624.08333 | C20: 22980.66667 | D20: 23227.75 | E20: 23584.16667 | F20: 23831.16667 | H20: 26946448.67 | I20: 18679007.75 | J20: 26934468.17 | L20: 15 | M20: 22624.08333 | N20: 22980.66667 | O20: 23227.75 | P20: 23584.16667 | Q20: 23831.16667 | S20: 26946448.67 | T20: 18679007.75 | U20: 26934468.17 | V20: 18673319.17 | X20: 15 | Y20: 185308 | Z20: 85146 | AA20: 271489 | AB20: 3646 | AC20: 6172 | AD20: 9818 | AE20: 12343 | AF20: 2937 | AG20: 2937 | AH20: 4972 | AI20: 7908 | AJ20: 9942 | AL20: 4279 | AM20: 7244 | AN20: 11521 | AO20: 14485 | AQ20: 271489 | AR20: 275768 | AS20: 278733 | AT20: 283010 | AU20: 285974 | AW20: 185308 | AX20: 85146 | AY20: 271489 | BA20: 4279 | BB20: 7244 | BC20: 11521 | BD20: 14485 | BF20: 271489 | BG20: 275768 | BH20: 278733 | BI20: 283010 | BJ20: 285974 | BL20: 15 | BM20: 141.1065489 | BN20: 143.3305613 | BO20: 144.8716216 | BP20: 147.0945946 | BQ20: 148.6351351 | BS20: 15 | BT20: 211.6598233 | BU20: 214.995842 | BV20: 217.3074324 | BW20: 220.6418919 | BX20: 222.9527027 | BZ20: 15 | CA20: 70.55327443 | CB20: 71.66528067 | CC20: 72.43581081 | CD20: 73.5472973 | CE20: 74.31756757
A21: 16 | B21: 23008.58333 | C21: 23374.16667 | D21: 23627.33333 | E21: 23992.83333 | F21: 24246.25 | H21: 27626378.17 | I21: 19138723.33 | J21: 27620704.83 | L21: 16 | M21: 23008.58333 | N21: 23374.16667 | O21: 23627.33333 | P21: 23992.83333 | Q21: 24246.25 | S21: 27626378.17 | T21: 19138723.33 | U21: 27620704.83 | V21: 19158218.25 | X21: 16 | Y21: 188475 | Z21: 86593 | AA21: 276103 | AB21: 3738 | AC21: 6327 | AD21: 10065 | AE21: 12655 | AF21: 3011 | AG21: 3011 | AH21: 5096 | AI21: 8107 | AJ21: 10194 | AL21: 4387 | AM21: 7425 | AN21: 11811 | AO21: 14852 | AQ21: 276103 | AR21: 280490 | AS21: 283528 | AT21: 287914 | AU21: 290955 | AW21: 188475 | AX21: 86593 | AY21: 276103 | BA21: 4387 | BB21: 7425 | BC21: 11811 | BD21: 14852 | BF21: 276103 | BG21: 280490 | BH21: 283528 | BI21: 287914 | BJ21: 290955 | BL21: 16 | BM21: 143.5046778 | BN21: 145.7848233 | BO21: 147.3638254 | BP21: 149.6434511 | BQ21: 151.2240125 | BS21: 16 | BT21: 215.2570166 | BU21: 218.6772349 | BV21: 221.045738 | BW21: 224.4651767 | BX21: 226.8360187 | BZ21: 16 | CA21: 71.75233888 | CB21: 72.89241164 | CC21: 73.68191268 | CD21: 74.82172557 | CE21: 75.61200624
A22: 17 | B22: =AQ22/12 -> 23328.08333 | C22: 23704.66667 | D22: 23965.5 | E22: 24342.25 | F22: 24602.91667 | H22: 28457252.67 | I22: 19717925.5 | J22: 28470474.25 | L22: 17 | M22: =BF22/12 -> 23328.08333 | N22: 23704.66667 | O22: 23965.5 | P22: 24342.25 | Q22: 24602.91667 | S22: 28457252.67 | T22: 19717925.5 | U22: 28470474.25 | V22: 19705978.92 | X22: 17 | Y22: 191106 | Z22: 87796 | AA22: 279937 | AB22: 3851 | AC22: 6518 | AD22: 10370 | AE22: 13035 | AF22: 3102 | AG22: 3102 | AH22: 5250 | AI22: 8353 | AJ22: 10500 | AL22: 4519 | AM22: 7649 | AN22: 12170 | AO22: 15298 | AQ22: 279937 | AR22: 284456 | AS22: 287586 | AT22: 292107 | AU22: 295235 | AW22: 191106 | AX22: 87796 | AY22: 279937 | BA22: 4519 | BB22: 7649 | BC22: 12170 | BD22: 15298 | BF22: 279937 | BG22: =$BF22+BA22 -> 284456 | BH22: 287586 | BI22: 292107 | BJ22: 295235 | BL22: 17 | BM22: =AQ22/1924 -> 145.4974012 | BN22: 147.8461538 | BO22: 149.472973 | BP22: 151.8227651 | BQ22: 153.4485447 | BS22: 17 | BT22: 218.2461019 | BU22: 221.7692308 | BV22: 224.2094595 | BW22: 227.7341476 | BX22: 230.172817 | BZ22: 17 | CA22: =AQ22/1924/2 -> 72.74870062 | CB22: 73.92307692 | CC22: 74.73648649 | CD22: 75.91138254 | CE22: 76.72427235
A23: 18 | B23: 23754.08333 | C23: 24140.33333 | D23: 24407.66667 | E23: 24794 | F23: 25061.33333 | H23: 29187560.33 | I23: 20209143.67 | J23: 29194506 | L23: 18 | M23: 23754.08333 | N23: 24140.33333 | O23: 24407.66667 | P23: 24794 | Q23: 25061.33333 | S23: 29187560.33 | T23: 20209143.67 | U23: 29194506 | V23: 20209797.33 | X23: 18 | Y23: 194615 | Z23: 89399 | AA23: 285049 | AB23: 3949 | AC23: 6683 | AD23: 10633 | AE23: 13367 | AF23: 3181 | AG23: 3181 | AH23: 5383 | AI23: 8565 | AJ23: 10767 | AL23: 4635 | AM23: 7843 | AN23: 12479 | AO23: 15687 | AQ23: 285049 | AR23: 289684 | AS23: 292892 | AT23: 297528 | AU23: 300736 | AW23: 194615 | AX23: 89399 | AY23: 285049 | BA23: 4635 | BB23: 7843 | BC23: 12479 | BD23: 15687 | BF23: 285049 | BG23: 289684 | BH23: 292892 | BI23: 297528 | BJ23: 300736 | BL23: 18 | BM23: 148.1543659 | BN23: 150.5634096 | BO23: 152.2307692 | BP23: 154.6403326 | BQ23: 156.3076923 | BS23: 18 | BT23: =AQ23/1924*1.5 -> 222.2315489 | BU23: 225.8451143 | BV23: 228.3461538 | BW23: 231.960499 | BX23: 234.4615385 | BZ23: 18 | CA23: 74.07718295 | CB23: 75.28170478 | CC23: 76.11538462 | CD23: 77.32016632 | CE23: 78.15384615
A24: 19 | B24: 24073 | C24: 24469.08333 | D24: 24743.33333 | E24: 25139.33333 | F24: 25413.58333 | H24: 29930345.08 | I24: 20731715.33 | J24: 29924723.33 | L24: 19 | M24: 24073 | N24: 24469.08333 | O24: 24743.33333 | P24: 25139.33333 | Q24: 25413.58333 | S24: 29930345.08 | T24: 20731715.33 | U24: 29924723.33 | V24: 20732385.58 | X24: 19 | Y24: 197242 | Z24: 90599 | AA24: 288876 | AB24: 4050 | AC24: 6854 | AD24: 10904 | AE24: 13708 | AF24: 3262 | AG24: 3262 | AH24: 5521 | AI24: 8783 | AJ24: 11042 | AL24: 4753 | AM24: 8044 | AN24: 12796 | AO24: 16087 | AQ24: 288876 | AR24: 293629 | AS24: 296920 | AT24: 301672 | AU24: 304963 | AW24: 197242 | AX24: 90599 | AY24: 288876 | BA24: 4753 | BB24: 8044 | BC24: 12796 | BD24: 16087 | BF24: 288876 | BG24: 293629 | BH24: 296920 | BI24: 301672 | BJ24: 304963 | BL24: 19 | BM24: 150.1434511 | BN24: 152.6138254 | BO24: 154.3243243 | BP24: 156.7941788 | BQ24: 158.5046778 | BS24: 19 | BT24: 225.2151767 | BU24: 228.920738 | BV24: 231.4864865 | BW24: 235.1912682 | BX24: 237.7570166 | BZ24: 19 | CA24: 75.07172557 | CB24: 76.30691268 | CC24: 77.16216216 | CD24: 78.3970894 | CE24: 79.25233888
A25: 20 | B25: 24357.75 | C25: 24763.83333 | D25: 25045.08333 | E25: 25451.33333 | F25: 25732.33333 | H25: 30685679.83 | I25: 21260545.08 | J25: 30698951.33 | L25: 20 | M25: 24357.75 | N25: 24763.83333 | O25: 25045.08333 | P25: 25451.33333 | Q25: 25732.33333 | S25: 30685679.83 | T25: 21260545.08 | U25: 30698951.33 | V25: 21242356.33 | X25: 20 | Y25: 199969 | Z25: =IF(beregningsdato>=$AB$5,ROUND((Y25+$AC$5)*regulering,0),ROUND(Y25*regulering,0)) -> 91671 | AA25: =IF(beregningsdato>=$AB$5,SUM($AC$5,Y25:Z25),SUM(Y25:Z25)) -> 292293 | AB25: 4153 | AC25: 7028 | AD25: 11182 | AE25: 14056 | AF25: 3345 | AG25: 3345 | AH25: 5661 | AI25: 9007 | AJ25: 11322 | AL25: 4873 | AM25: 8248 | AN25: 13123 | AO25: 16495 | AQ25: 292293 | AR25: 297166 | AS25: 300541 | AT25: 305416 | AU25: 308788 | AW25: 199969 | AX25: =IF(beregningsdato>=$AB$5,ROUND((AW25+$AC$5)*regulering,0),ROUND(AW25*regulering,0)) -> 91671 | AY25: =IF(beregningsdato>=$AB$5,SUM($AC$5,AW25:AX25),SUM(AW25:AX25)) -> 292293 | BA25: 4873 | BB25: 8248 | BC25: 13123 | BD25: 16495 | BF25: 292293 | BG25: 297166 | BH25: 300541 | BI25: 305416 | BJ25: 308788 | BL25: 20 | BM25: 151.9194387 | BN25: 154.452183 | BO25: 156.206341 | BP25: 158.7401247 | BQ25: 160.4927235 | BS25: 20 | BT25: 227.879158 | BU25: 231.6782744 | BV25: 234.3095114 | BW25: 238.1101871 | BX25: 240.7390852 | BZ25: 20 | CA25: 75.95971933 | CB25: 77.22609148 | CC25: 78.10317048 | CD25: 79.37006237 | CE25: 80.24636175
A26: 21 | B26: 24760.41667 | C26: 25177 | D26: 25465.33333 | E26: 25881.91667 | F26: 26170.25 | H26: 31478885 | I26: 21795785.33 | J26: 31479589.92 | L26: 21 | M26: 24760.41667 | N26: 25177 | O26: 25465.33333 | P26: 25881.91667 | Q26: 26170.25 | S26: 31478885 | T26: 21795785.33 | U26: 31479589.92 | V26: 21796490.25 | X26: 21 | Y26: 203286 | Z26: =IF(beregningsdato>=$AB$5,ROUND((Y26+$AC$5)*regulering,0),ROUND(Y26*regulering,0)) -> 93186 | AA26: =IF(beregningsdato>=$AB$5,SUM($AC$5,Y26:Z26),SUM(Y26:Z26)) -> 297125 | AB26: 4259 | AC26: 7208 | AD26: 11467 | AE26: 14416 | AF26: 3431 | AG26: 3431 | AH26: 5806 | AI26: 9237 | AJ26: 11612 | AL26: =ROUND(VLOOKUP($X26,$X:$AJ,(4+AL$4)+$AM$5)*(1+$AL$5),0) -> 4999 | AM26: 8459 | AN26: 13458 | AO26: 16918 | AQ26: 297125 | AR26: 302124 | AS26: 305584 | AT26: 310583 | AU26: 314043 | AW26: 203286 | AX26: =IF(beregningsdato>=$AB$5,ROUND((AW26+$AC$5)*regulering,0),ROUND(AW26*regulering,0)) -> 93186 | AY26: =IF(beregningsdato>=$AB$5,SUM($AC$5,AW26:AX26),SUM(AW26:AX26)) -> 297125 | BA26: 4999 | BB26: 8459 | BC26: 13458 | BD26: 16918 | BF26: 297125 | BG26: 302124 | BH26: 305584 | BI26: 310583 | BJ26: 314043 | BL26: 21 | BM26: 154.4308732 | BN26: 157.029106 | BO26: 158.8274428 | BP26: 161.4256757 | BQ26: 163.2240125 | BS26: 21 | BT26: 231.6463098 | BU26: 235.543659 | BV26: 238.2411642 | BW26: 242.1385135 | BX26: 244.8360187 | BZ26: 21 | CA26: 77.21543659 | CB26: 78.51455301 | CC26: 79.41372141 | CD26: 80.71283784 | CE26: 81.61200624
A27: 22 | B27: 25054.66667 | C27: 25471.25 | D27: 25759.58333 | E27: 26176.16667 | F27: 26464.5 | H27: 31479179.25 | I27: 21796079.58 | J27: 31479884.17 | L27: 22 | M27: 25054.66667 | N27: 25471.25 | O27: 25759.58333 | P27: 26176.16667 | Q27: 26464.5 | S27: 31479179.25 | T27: 21796079.58 | U27: 31479884.17 | V27: 21796784.5 | X27: 22 | Y27: 206362 | Z27: 94294 | AA27: 300656 | AB27: 4259 | AC27: 7208 | AD27: 11467 | AE27: 14416 | AG27: 3431 | AH27: 5806 | AI27: 9237 | AJ27: 11612 | AL27: 4999 | AM27: 8459 | AN27: 13458 | AO27: 16918 | AQ27: 300656 | AR27: 305655 | AS27: 309115 | AT27: 314114 | AU27: 317574 | AW27: 206362 | AX27: 94293.60775 | AY27: 300656 | BA27: 4999 | BB27: 8459 | BC27: 13458 | BD27: 16918 | BF27: 300656 | BG27: 305655 | BH27: 309115 | BI27: 314114 | BJ27: 317574 | BL27: 22 | BM27: 156.2661123 | BN27: 158.8643451 | BO27: 160.6626819 | BP27: 163.2609148 | BQ27: 165.0592516 | BS27: 22 | BT27: 234.3991684 | BU27: 238.2965177 | BV27: 240.9940229 | BW27: 244.8913721 | BX27: 247.5888773 | BZ27: 22 | CA27: 78.13305613 | CB27: 79.43217256 | CC27: 80.33134096 | CD27: 81.63045738 | CE27: 82.52962578
A28: 23 | B28: 25454.16667 | C28: 25859.41667 | D28: 26139.75 | E28: 26544.91667 | F28: 26825.41667 | H28: 30623855.42 | I28: 21192427.75 | J28: 30618248.92 | L28: 23 | M28: 25454.16667 | N28: 25859.41667 | O28: 26139.75 | P28: 26544.91667 | Q28: 26825.41667 | S28: 30623855.42 | T28: 21192427.75 | U28: 30618248.92 | V28: 21205697.42 | X28: 23 | Y28: 209653 | Z28: 95797 | AA28: 305450 | AB28: 4144 | AC28: 7010 | AD28: 11153 | AE28: 14021 | AG28: 3338 | AH28: 5647 | AI28: 8984 | AJ28: 11294 | AL28: 4863 | AM28: 8227 | AN28: 13089 | AO28: 16455 | AQ28: 305450 | AR28: 310313 | AS28: 313677 | AT28: 318539 | AU28: 321905 | AW28: 209653 | AX28: 95797.37425 | AY28: 305450 | BA28: 4863 | BB28: 8227 | BC28: 13089 | BD28: 16455 | BF28: 305450 | BG28: 310313 | BH28: 313677 | BI28: 318539 | BJ28: 321905 | BL28: 23 | BM28: 158.7577963 | BN28: 161.285343 | BO28: 163.0337838 | BP28: 165.5608108 | BQ28: 167.3102911 | BS28: 23 | BT28: 238.1366944 | BU28: 241.9280146 | BV28: 244.5506757 | BW28: 248.3412162 | BX28: 250.9654366 | BZ28: 23 | CA28: 79.37889813 | CB28: 80.64267152 | CC28: 81.51689189 | CD28: 82.78040541 | CE28: 83.65514553
A29: 24 | B29: 25866.5 | C29: 26260.08333 | D29: 26532.66667 | E29: 26926.33333 | F29: 27198.75 | H29: 29743376.08 | I29: 20607664.67 | J29: 29750334.33 | L29: 24 | M29: 25866.5 | N29: 26260.08333 | O29: 26532.66667 | P29: 26926.33333 | Q29: 27198.75 | S29: 29743376.08 | T29: 20607664.67 | U29: 29750334.33 | V29: 20595746.75 | X29: 24 | Y29: 213049 | Z29: 97349 | AA29: 310398 | AB29: 4025 | AC29: 6812 | AD29: 10837 | AE29: 13623 | AG29: 3242 | AH29: 5487 | AI29: 8729 | AJ29: 10973 | AL29: 4723 | AM29: 7994 | AN29: 12718 | AO29: 15987 | AQ29: 310398 | AR29: 315121 | AS29: 318392 | AT29: 323116 | AU29: 326385 | AW29: 213049 | AX29: 97349.11872 | AY29: 310398 | BA29: 4723 | BB29: 7994 | BC29: 12718 | BD29: 15987 | BF29: 310398 | BG29: 315121 | BH29: 318392 | BI29: 323116 | BJ29: 326385 | BL29: 24 | BM29: 161.3295218 | BN29: 163.7843035 | BO29: 165.4844075 | BP29: 167.9397089 | BQ29: 169.6387734 | BS29: 24 | BT29: 241.9942827 | BU29: 245.6764553 | BV29: 248.2266112 | BW29: 251.9095634 | BX29: 254.4581601 | BZ29: 24 | CA29: 80.66476091 | CB29: 81.89215177 | CC29: 82.74220374 | CD29: 83.96985447 | CE29: 84.81938669
A30: 25 | B30: 26287.41667 | C30: 26668.75 | D30: 26932.75 | E30: 27314.16667 | F30: =AU30/12 -> 27578.16667 | H30: 28818860.75 | I30: 19959988.75 | J30: 28825798.17 | L30: 25 | M30: 26287.41667 | N30: 26668.75 | O30: 26932.75 | P30: 27314.16667 | Q30: 27578.16667 | S30: 28818860.75 | T30: 19959988.75 | U30: 28825798.17 | V30: 19960634.17 | X30: 25 | Y30: 216516 | Z30: 98933 | AA30: 315449 | AB30: 3899 | AC30: 6598 | AD30: 10499 | AE30: 13198 | AG30: 3141 | AH30: 5315 | AI30: 8457 | AJ30: 10631 | AL30: 4576 | AM30: 7744 | AN30: 12321 | AO30: 15489 | AQ30: 315449 | AR30: 320025 | AS30: 323193 | AT30: 327770 | AU30: 330938 | AW30: 216516 | AX30: 98933.30543 | AY30: 315449 | BA30: 4576 | BB30: 7744 | BC30: 12321 | BD30: 15489 | BF30: 315449 | BG30: 320025 | BH30: 323193 | BI30: 327770 | BJ30: 330938 | BL30: 25 | BM30: 163.9547817 | BN30: 166.3331601 | BO30: 167.9797297 | BP30: 170.3586279 | BQ30: 172.0051975 | BS30: 25 | BT30: 245.9321726 | BU30: 249.4997401 | BV30: 251.9695946 | BW30: 255.5379418 | BX30: 258.0077963 | BZ30: 25 | CA30: 81.97739085 | CB30: 83.16658004 | CC30: 83.98986486 | CD30: 85.17931393 | CE30: 86.00259875
A31: 26 | B31: 26718.08333 | C31: 27086.41667 | D31: 27341.25 | E31: 27709.41667 | F31: 27964.33333 | H31: 27837726.42 | I31: 19268277.25 | J31: 27825765.42 | L31: 26 | M31: 26718.08333 | N31: 27086.41667 | O31: 27341.25 | P31: 27709.41667 | Q31: 27964.33333 | S31: 27837726.42 | T31: 19268277.25 | U31: 27825765.42 | V31: 19275192.33 | X31: 26 | Y31: 220063 | Z31: 100554 | AA31: 320617 | AB31: 3766 | AC31: 6372 | AD31: 10137 | AE31: 12743 | AG31: 3034 | AH31: 5133 | AI31: 8165 | AJ31: 10265 | AL31: 4420 | AM31: 7478 | AN31: 11896 | AO31: 14955 | AQ31: 320617 | AR31: 325037 | AS31: 328095 | AT31: 332513 | AU31: 335572 | AW31: 220063 | AX31: 100554.0468 | AY31: 320617 | BA31: 4420 | BB31: 7478 | BC31: 11896 | BD31: 14955 | BF31: 320617 | BG31: 325037 | BH31: 328095 | BI31: 332513 | BJ31: 335572 | BL31: 26 | BM31: 166.6408524 | BN31: 168.9381497 | BO31: 170.5275468 | BP31: 172.8238046 | BQ31: 174.4137214 | BS31: 26 | BT31: 249.9612786 | BU31: 253.4072245 | BV31: 255.7913202 | BW31: 259.2357069 | BX31: 261.6205821 | BZ31: 26 | CA31: 83.3204262 | CB31: 84.46907484 | CC31: 85.26377339 | CD31: 86.41190229 | CE31: 87.20686071
A32: 27 | B32: 27158.58333 | C32: 27512.75 | D32: 27757.75 | E32: 28111.91667 | F32: 28357 | H32: 26768512.75 | I32: 18526237.75 | J32: 26769111.92 | L32: 27 | M32: 27158.58333 | N32: 27512.75 | O32: 27757.75 | P32: 28111.91667 | Q32: 28357 | S32: 26768512.75 | T32: 18526237.75 | U32: 26769111.92 | V32: 18533129 | X32: 27 | Y32: 223691 | Z32: 102212 | AA32: 325903 | AB32: 3621 | AC32: 6127 | AD32: 9748 | AE32: 12254 | AG32: 2917 | AH32: 4935 | AI32: 7852 | AJ32: 9871 | AL32: 4250 | AM32: 7190 | AN32: 11440 | AO32: 14381 | AQ32: 325903 | AR32: 330153 | AS32: 333093 | AT32: 337343 | AU32: 340284 | AW32: 223691 | AX32: 102211.7997 | AY32: 325903 | BA32: 4250 | BB32: 7190 | BC32: 11440 | BD32: 14381 | BF32: 325903 | BG32: 330153 | BH32: 333093 | BI32: 337343 | BJ32: 340284 | BL32: 27 | BM32: 169.3882536 | BN32: 171.5971933 | BO32: 173.1252599 | BP32: 175.3341996 | BQ32: 176.8627859 | BS32: 27 | BT32: 254.0823805 | BU32: 257.39579 | BV32: 259.6878898 | BW32: 263.0012994 | BX32: 265.2941788 | BZ32: 27 | CA32: 84.69412682 | CB32: 85.79859667 | CC32: 86.56262994 | CD32: 87.66709979 | CE32: 88.43139293
A33: 28 | B33: 27608.75 | C33: 27947.83333 | D33: 28182.5 | E33: 28521.66667 | F33: 28756.16667 | H33: 25630095.83 | I33: 17746454.5 | J33: 25636961.67 | L33: 28 | M33: 27608.75 | N33: 27947.83333 | O33: 28182.5 | P33: 28521.66667 | Q33: 28756.16667 | S33: 25630095.83 | T33: 17746454.5 | U33: 25636961.67 | V33: 17734444.17 | X33: 28 | Y33: 227399 | Z33: 103906 | AA33: 331305 | AB33: 3467 | AC33: 5867 | AD33: 9334 | AE33: 11733 | AG33: 2793 | AH33: 4726 | AI33: 7519 | AJ33: 9451 | AL33: 4069 | AM33: 6885 | AN33: 10955 | AO33: 13769 | AQ33: 331305 | AR33: 335374 | AS33: 338190 | AT33: 342260 | AU33: 345074 | AW33: 227399 | AX33: 103906.1073 | AY33: 331305 | BA33: 4069 | BB33: 6885 | BC33: 10955 | BD33: 13769 | BF33: 331305 | BG33: 335374 | BH33: 338190 | BI33: 342260 | BJ33: 345074 | BL33: 28 | BM33: 172.1959459 | BN33: 174.3108108 | BO33: 175.7744283 | BP33: 177.8898129 | BQ33: 179.3523909 | BS33: 28 | BT33: 258.2939189 | BU33: 261.4662162 | BV33: 263.6616424 | BW33: 266.8347193 | BX33: 269.0285863 | BZ33: 28 | CA33: 86.09797297 | CB33: 87.15540541 | CC33: 87.88721414 | CD33: 88.94490644 | CE33: 89.67619543
A34: 29 | B34: 28069.16667 | C34: 28392.25 | D34: 28615.75 | E34: 28938.75 | F34: 29162.33333 | H34: 24422476.25 | I34: 16903759.75 | J34: 24416730.75 | L34: 29 | M34: 28069.16667 | N34: 28392.25 | O34: 28615.75 | P34: 28938.75 | Q34: 29162.33333 | S34: 24422476.25 | T34: 16903759.75 | U34: 24416730.75 | V34: 16910598.33 | X34: 29 | Y34: 231191 | Z34: 105639 | AA34: 336830 | AB34: 3303 | AC34: 5589 | AD34: 8891 | AE34: 11178 | AG34: 2661 | AH34: 4502 | AI34: 7162 | AJ34: 9004 | AL34: 3877 | AM34: 6559 | AN34: 10435 | AO34: 13118 | AQ34: 336830 | AR34: 340707 | AS34: 343389 | AT34: 347265 | AU34: 349948 | AW34: 231191 | AX34: 105638.7972 | AY34: 336830 | BA34: 3877 | BB34: 6559 | BC34: 10435 | BD34: 13118 | BF34: 336830 | BG34: 340707 | BH34: 343389 | BI34: 347265 | BJ34: 349948 | BL34: 29 | BM34: 175.0675676 | BN34: 177.0826403 | BO34: 178.4766112 | BP34: 180.4911642 | BQ34: 181.8856549 | BS34: 29 | BT34: 262.6013514 | BU34: 265.6239605 | BV34: 267.7149168 | BW34: 270.7367464 | BX34: 272.8284823 | BZ34: 29 | CA34: 87.53378378 | CB34: 88.54132017 | CC34: 89.23830561 | CD34: 90.24558212 | CE34: 90.94282744
A35: 30 | B35: 28539.5 | C35: 28845.33333 | D35: 29057.16667 | E35: 29362.91667 | F35: 29574.66667 | H35: 23120485.33 | I35: 16023321.17 | J35: 23114710.92 | L35: 30 | M35: 28539.5 | N35: 28845.33333 | O35: 29057.16667 | P35: 29362.91667 | Q35: 29574.66667 | S35: 23120485.33 | T35: 16023321.17 | U35: 23114710.92 | V35: 16017546.67 | X35: 30 | Y35: 235065 | Z35: 107409 | AA35: 342474 | AB35: 3127 | AC35: 5293 | AD35: 8420 | AE35: 10585 | AG35: 2519 | AH35: 4264 | AI35: 6782 | AJ35: 8526 | AL35: 3670 | AM35: 6212 | AN35: 9881 | AO35: 12422 | AQ35: 342474 | AR35: 346144 | AS35: 348686 | AT35: 352355 | AU35: 354896 | AW35: 235065 | AX35: 107408.9556 | AY35: 342474 | BA35: 3670 | BB35: 6212 | BC35: 9881 | BD35: 12422 | BF35: 342474 | BG35: 346144 | BH35: 348686 | BI35: 352355 | BJ35: 354896 | BL35: 30 | BM35: 178.0010395 | BN35: 179.9085239 | BO35: 181.2297297 | BP35: 183.1366944 | BQ35: 184.4573805 | BS35: 30 | BT35: 267.0015593 | BU35: 269.8627859 | BV35: 271.8445946 | BW35: 274.7050416 | BX35: 276.6860707 | BZ35: 30 | CA35: 89.00051975 | CB35: 89.95426195 | CC35: 90.61486486 | CD35: 91.56834719 | CE35: 92.22869023
A36: 31 | B36: 29020.5 | C36: 29308.25 | D36: 29507.33333 | E36: 29795.08333 | F36: 29994.25 | H36: 21755584.25 | I36: 15061095.33 | J36: 21756071.08 | L36: 31 | M36: 29020.5 | N36: 29308.25 | O36: 29507.33333 | P36: 29795.08333 | Q36: 29994.25 | S36: 21755584.25 | T36: 15061095.33 | U36: 21756071.08 | V36: 15067874.25 | X36: 31 | Y36: 239027 | Z36: 109219 | AA36: 348246 | AB36: 2942 | AC36: 4978 | AD36: 7920 | AE36: 9956 | AG36: 2370 | AH36: 4010 | AI36: 6380 | AJ36: 8020 | AL36: 3453 | AM36: 5842 | AN36: 9295 | AO36: 11685 | AQ36: 348246 | AR36: 351699 | AS36: 354088 | AT36: 357541 | AU36: 359931 | AW36: 239027 | AX36: 109219.3242 | AY36: 348246 | BA36: 3453 | BB36: 5842 | BC36: 9295 | BD36: 11685 | BF36: 348246 | BG36: 351699 | BH36: 354088 | BI36: 357541 | BJ36: 359931 | BL36: 31 | BM36: 181.0010395 | BN36: 182.795738 | BO36: 184.037422 | BP36: 185.8321206 | BQ36: 187.0743243 | BS36: 31 | BT36: 271.5015593 | BU36: 274.1936071 | BV36: 276.0561331 | BW36: 278.7481809 | BX36: 280.6114865 | BZ36: 31 | CA36: 90.50051975 | CB36: 91.39786902 | CC36: 92.01871102 | CD36: 92.91606029 | CE36: 93.53716216
A37: 32 | B37: 29512.25 | C37: 29780.58333 | D37: 29966.16667 | E37: 30234.66667 | F37: 30420.41667 | H37: 20290020.58 | I37: 14042250.17 | J37: 20303058.67 | L37: 32 | M37: 29512.25 | N37: 29780.58333 | O37: 29966.16667 | P37: 30234.66667 | Q37: 30420.41667 | S37: 20290020.58 | T37: 14042250.17 | U37: 20303058.67 | V37: 14055288.42 | X37: 32 | Y37: 243077 | Z37: 111070 | AA37: 354147 | AB37: 2743 | AC37: 4642 | AD37: 7387 | AE37: 9286 | AG37: 2210 | AH37: 3739 | AI37: 5950 | AJ37: 7480 | AL37: 3220 | AM37: 5447 | AN37: 8669 | AO37: 10898 | AQ37: 354147 | AR37: 357367 | AS37: 359594 | AT37: 362816 | AU37: 365045 | AW37: 243077 | AX37: 111069.9028 | AY37: 354147 | BA37: 3220 | BB37: 5447 | BC37: 8669 | BD37: 10898 | BF37: 354147 | BG37: 357367 | BH37: 359594 | BI37: 362816 | BJ37: 365045 | BL37: 32 | BM37: 184.0680873 | BN37: 185.741684 | BO37: 186.8991684 | BP37: 188.5738046 | BQ37: 189.7323285 | BS37: 32 | BT37: 276.102131 | BU37: 278.612526 | BV37: 280.3487526 | BW37: 282.8607069 | BX37: 284.5984927 | BZ37: 32 | CA37: 92.03404366 | CB37: 92.870842 | CC37: 93.4495842 | CD37: 94.28690229 | CE37: 94.86616424
A38: 33 | B38: 30014.66667 | C38: 30262.5 | D38: 30434 | E38: 30681.83333 | F38: 30853.25 | H38: 18742670.5 | I38: 12979370 | J38: 18743089.83 | L38: 33 | M38: 30014.66667 | N38: 30262.5 | O38: 30434 | P38: 30681.83333 | Q38: 30853.25 | S38: 18742670.5 | T38: 12979370 | U38: 18743089.83 | V38: 12973497.25 | X38: 33 | Y38: 247215 | Z38: =ROUND(Y38*regulering,0) -> 112961 | AA38: 360176 | AB38: 2534 | AC38: 4288 | AD38: 6822 | AE38: 8575 | AG38: 2041 | AH38: 3454 | AI38: 5495 | AJ38: 6907 | AL38: 2974 | AM38: 5032 | AN38: 8006 | AO38: 10063 | AQ38: 360176 | AR38: 363150 | AS38: 365208 | AT38: 368182 | AU38: 370239 | AW38: 247215 | AX38: =AW38*regulering -> 112960.6916 | AY38: 360176 | BA38: =ROUND(AL38*udbygningspct,0) -> 2974 | BB38: =ROUND(AM38*udbygningspct,0) -> 5032 | BC38: =ROUND(AN38*udbygningspct,0) -> 8006 | BD38: =ROUND(AO38*udbygningspct,0) -> 10063 | BF38: 360176 | BG38: 363150 | BH38: 365208 | BI38: 368182 | BJ38: 370239 | BL38: 33 | BM38: 187.2016632 | BN38: 188.7474012 | BO38: 189.8170478 | BP38: 191.3627859 | BQ38: 192.4319127 | BS38: 33 | BT38: 280.8024948 | BU38: 283.1211019 | BV38: 284.7255717 | BW38: 287.0441788 | BX38: 288.647869 | BZ38: 33 | CA38: 93.6008316 | CB38: 94.37370062 | CC38: 94.90852391 | CD38: 95.68139293 | CE38: 96.21595634
A39: 34 | B39: 30528.66667 | C39: 30754.75 | D39: 30911.08333 | E39: 31137.16667 | F39: 31293.66667 | H39: 17100950.75 | I39: 11834703.08 | J39: 17101333.17 | L39: 34 | M39: 30528.66667 | N39: 30754.75 | O39: 30911.08333 | P39: 31137.16667 | Q39: 31293.66667 | S39: 17100950.75 | T39: 11834703.08 | U39: 17101333.17 | V39: 11847669.67 | X39: 34 | Y39: 251449 | Z39: 114895 | AA39: 366344 | AB39: 2311 | AC39: 3911 | AD39: 6222 | AE39: 7823 | AG39: 1862 | AH39: 3150 | AI39: 5012 | AJ39: 6301 | AL39: 2713 | AM39: 4589 | AN39: 7302 | AO39: 9180 | AQ39: 366344 | AR39: 369057 | AS39: 370933 | AT39: 373646 | AU39: 375524 | AW39: 251449 | AX39: 114895.3459 | AY39: 366344 | BA39: 2713 | BB39: 4589 | BC39: 7302 | BD39: 9180 | BF39: 366344 | BG39: 369057 | BH39: 370933 | BI39: 373646 | BJ39: 375524 | BL39: 34 | BM39: 190.4074844 | BN39: 191.8175676 | BO39: 192.7926195 | BP39: 194.2027027 | BQ39: 195.1787942 | BS39: 34 | BT39: 285.6112266 | BU39: 287.7263514 | BV39: 289.1889293 | BW39: 291.3040541 | BX39: 292.7681913 | BZ39: 34 | CA39: 95.2037422 | CB39: 95.90878378 | CC39: 96.39630977 | CD39: 97.10135135 | CE39: 97.58939709
A40: 35 | B40: 31053.58333 | C40: 31256.58333 | D40: 31397.08333 | E40: 31599.91667 | F40: 31740.5 | H40: 15358568.58 | I40: 10639709.08 | J40: 15346327.92 | L40: 35 | M40: 31053.58333 | N40: 31256.58333 | O40: 31397.08333 | P40: 31599.91667 | Q40: 31740.5 | S40: 15358568.58 | T40: 10639709.08 | U40: 15346327.92 | V40: 10646344.5 | X40: 35 | Y40: 255772 | Z40: 116871 | AA40: 372643 | AB40: 2076 | AC40: 3512 | AD40: 5586 | AE40: 7024 | AG40: 1672 | AH40: 2829 | AI40: 4500 | AJ40: 5658 | AL40: 2436 | AM40: 4122 | AN40: 6556 | AO40: 8243 | AQ40: 372643 | AR40: 375079 | AS40: 376765 | AT40: 379199 | AU40: 380886 | AW40: 255772 | AX40: 116870.6673 | AY40: 372643 | BA40: 2436 | BB40: 4122 | BC40: 6556 | BD40: 8243 | BF40: 372643 | BG40: 375079 | BH40: 376765 | BI40: 379199 | BJ40: 380886 | BL40: 35 | BM40: 193.6813929 | BN40: 194.9475052 | BO40: 195.8238046 | BP40: 197.0888773 | BQ40: 197.9656965 | BS40: 35 | BT40: 290.5220894 | BU40: 292.4212578 | BV40: 293.7357069 | BW40: 295.633316 | BX40: 296.9485447 | BZ40: 35 | CA40: 96.84069647 | CB40: 97.4737526 | CC40: 97.91190229 | CD40: 98.54443867 | CE40: 98.98284823
A41: 36 | B41: 31590.41667 | C41: 31769 | D41: 31892.5 | E41: 32071 | F41: 32194.58333 | H41: 13515525 | I41: 9356636.5 | J41: 13509535 | L41: 36 | M41: 31590.41667 | N41: 31769 | O41: 31892.5 | P41: 32071 | Q41: 32194.58333 | S41: 13515525 | T41: 9356636.5 | U41: 13509535 | V41: 9363230.583 | X41: 36 | Y41: 260194 | Z41: 118891 | AA41: 379085 | AB41: 1826 | AC41: 3089 | AD41: 4914 | AE41: 6177 | AG41: 1471 | AH41: 2488 | AI41: 3958 | AJ41: 4976 | AL41: 2143 | AM41: 3625 | AN41: 5767 | AO41: 7250 | AQ41: 379085 | AR41: 381228 | AS41: 382710 | AT41: 384852 | AU41: 386335 | AW41: 260194 | AX41: 118891.225 | AY41: 379085 | BA41: 2143 | BB41: 3625 | BC41: 5767 | BD41: 7250 | BF41: 379085 | BG41: 381228 | BH41: 382710 | BI41: 384852 | BJ41: 386335 | BL41: 36 | BM41: 197.0296258 | BN41: 198.1434511 | BO41: 198.9137214 | BP41: 200.027027 | BQ41: 200.797817 | BS41: 36 | BT41: 295.5444387 | BU41: 297.2151767 | BV41: 298.3705821 | BW41: 300.0405405 | BX41: 301.1967256 | BZ41: 36 | CA41: 98.51481289 | CB41: 99.07172557 | CC41: 99.45686071 | CD41: 100.0135135 | CE41: 100.3989085
A42: 37 | B42: 32139 | C42: 32291.58333 | D42: 32397.33333 | E42: 32550 | F42: 32655.58333 | H42: 11552943.58 | I42: 8016945.333 | J42: 11559494 | L42: 37 | M42: 32139 | N42: 32291.58333 | O42: 32397.33333 | P42: 32550 | Q42: 32655.58333 | S42: 11552943.58 | T42: 8016945.333 | U42: 11559494 | V42: 8004619.583 | X42: 37 | Y42: 264712 | Z42: 120956 | AA42: 385668 | AB42: 1560 | AC42: 2642 | AD42: 4202 | AE42: 5282 | AG42: 1257 | AH42: 2128 | AI42: 3385 | AJ42: 4255 | AL42: 1831 | AM42: 3100 | AN42: 4932 | AO42: 6199 | AQ42: 385668 | AR42: 387499 | AS42: 388768 | AT42: 390600 | AU42: 391867 | AW42: 264712 | AX42: 120955.6483 | AY42: 385668 | BA42: 1831 | BB42: 3100 | BC42: 4932 | BD42: 6199 | BF42: 385668 | BG42: 387499 | BH42: 388768 | BI42: 390600 | BJ42: 391867 | BL42: 37 | BM42: 200.4511435 | BN42: 201.4028067 | BO42: 202.0623701 | BP42: 203.014553 | BQ42: 203.6730769 | BS42: 37 | BT42: 300.6767152 | BU42: 302.10421 | BV42: 303.0935551 | BW42: 304.5218295 | BX42: 305.5096154 | BZ42: 37 | CA42: 100.2255717 | CB42: 100.7014033 | CC42: 101.031185 | CD42: 101.5072765 | CE42: 101.8365385
A43: 38 | B43: 32721.25 | C43: 32849 | D43: 32937.5 | E43: 33065.16667 | F43: 33153.83333 | H43: 9678485 | I43: 6715041.5 | J43: 9672409.167 | L43: 38 | M43: 32721.25 | N43: 32849 | O43: 32937.5 | P43: 33065.16667 | Q43: 33153.83333 | S43: 9678485 | T43: 6715041.5 | U43: 9672409.167 | V43: 6727841.833 | X43: 38 | Y43: 269508 | Z43: 123147 | AA43: 392655 | AB43: 1306 | AC43: 2211 | AD43: 3517 | AE43: 4423 | AG43: 1052 | AH43: 1781 | AI43: 2833 | AJ43: 3563 | AL43: 1533 | AM43: 2595 | AN43: 4127 | AO43: 5191 | AQ43: 392655 | AR43: 394188 | AS43: 395250 | AT43: 396782 | AU43: 397846 | AW43: 269508 | AX43: 123147.099 | AY43: 392655 | BA43: 1533 | BB43: 2595 | BC43: 4127 | BD43: 5191 | BF43: 392655 | BG43: 394188 | BH43: 395250 | BI43: 396782 | BJ43: 397846 | BL43: 38 | BM43: 204.0826403 | BN43: 204.8794179 | BO43: 205.4313929 | BP43: 206.2276507 | BQ43: 206.7806653 | BS43: 38 | BT43: 306.1239605 | BU43: 307.3191268 | BV43: 308.1470894 | BW43: 309.3414761 | BX43: 310.1709979 | BZ43: 38 | CA43: 102.0413202 | CB43: 102.4397089 | CC43: 102.7156965 | CD43: 103.1138254 | CE43: 103.3903326
A44: 39 | B44: 33305.83333 | C44: 33404.16667 | D44: 33472.25 | E44: 33570.66667 | F44: 33638.83333 | H44: 7457964.167 | I44: 5174036.25 | J44: 7464422.667 | L44: 39 | M44: 33305.83333 | N44: 33404.16667 | O44: 33472.25 | P44: 33570.66667 | Q44: 33638.83333 | S44: 7457964.167 | T44: 5174036.25 | U44: 7464422.667 | V44: 5180494.833 | X44: 39 | Y44: 274323 | Z44: 125347 | AA44: 399670 | AB44: 1006 | AC44: 1702 | AD44: 2708 | AE44: 3405 | AG44: 810 | AH44: 1371 | AI44: 2181 | AJ44: 2743 | AL44: 1180 | AM44: 1997 | AN44: 3178 | AO44: 3996 | AQ44: 399670 | AR44: 400850 | AS44: 401667 | AT44: 402848 | AU44: 403666 | AW44: 274323 | AX44: 125347.2314 | AY44: 399670 | BA44: 1180 | BB44: 1997 | BC44: 3178 | BD44: 3996 | BF44: 399670 | BG44: 400850 | BH44: 401667 | BI44: 402848 | BJ44: 403666 | BL44: 39 | BM44: 207.7286902 | BN44: 208.3419958 | BO44: 208.766632 | BP44: 209.3804574 | BQ44: 209.8056133 | BS44: 39 | BT44: 311.5930353 | BU44: 312.5129938 | BV44: 313.149948 | BW44: 314.0706861 | BX44: 314.70842 | BZ44: 39 | CA44: 103.8643451 | CB44: 104.1709979 | CC44: 104.383316 | CD44: 104.6902287 | CE44: 104.9028067
A45: 40 | B45: 33903.66667 | C45: 33970.91667 | D45: 34017.58333 | E45: 34084.91667 | F45: 34131.58333 | H45: 5111614.917 | I45: 3557537.583 | J45: 5118020.917 | L45: 40 | M45: 33903.66667 | N45: 33970.91667 | O45: 34017.58333 | P45: 34084.91667 | Q45: 34131.58333 | S45: 5111614.917 | T45: 3557537.583 | U45: 5118020.917 | V45: 3557651.583 | X45: 40 | Y45: 279247 | Z45: 127597 | AA45: 406844 | AB45: 688 | AC45: 1165 | AD45: 1853 | AE45: 2330 | AG45: 554 | AH45: 938 | AI45: 1493 | AJ45: 1877 | AL45: 807 | AM45: 1367 | AN45: 2175 | AO45: 2735 | AQ45: 406844 | AR45: 407651 | AS45: 408211 | AT45: 409019 | AU45: 409579 | AW45: 279247 | AX45: 127597.1695 | AY45: 406844 | BA45: 807 | BB45: 1367 | BC45: 2175 | BD45: 2735 | BF45: =AY45 -> 406844 | BG45: 407651 | BH45: 408211 | BI45: 409019 | BJ45: 409579 | BL45: 40 | BM45: 211.4573805 | BN45: 211.8768191 | BO45: 212.1678794 | BP45: 212.5878378 | BQ45: 212.8788981 | BS45: 40 | BT45: 317.1860707 | BU45: 317.8152287 | BV45: 318.2518191 | BW45: 318.8817568 | BX45: 319.3183472 | BZ45: 40 | CA45: 105.7286902 | CB45: 105.9384096 | CC45: 106.0839397 | CD45: 106.2939189 | CE45: 106.4394491
A46: 41 | B46: 34514.5 | C46: 34549 | D46: 34573 | E46: 34607.41667 | F46: 34631.41667 | H46: 2639437 | I46: 1846669 | J46: 2633203.417 | L46: 41 | M46: 34514.5 | N46: 34549 | O46: 34573 | P46: 34607.41667 | Q46: 34631.41667 | S46: 2639437 | T46: 1846669 | U46: 2633203.417 | V46: 1846727.417 | X46: 41 | Y46: 284278 | Z46: 129896 | AA46: 414174 | AB46: 353 | AC46: 598 | AD46: 950 | AE46: 1195 | AG46: 284 | AH46: 482 | AI46: 765 | AJ46: 963 | AL46: =ROUND(VLOOKUP($X46,$X:$AJ,(4+AL$4)+$AM$5)*(1+$AL$5),0) -> 414 | AM46: 702 | AN46: 1115 | AO46: 1403 | AQ46: 414174 | AR46: 414588 | AS46: 414876 | AT46: 415289 | AU46: 415577 | AW46: 284278 | AX46: 129895.9994 | AY46: 414174 | BA46: 414 | BB46: 702 | BC46: 1115 | BD46: 1403 | BF46: =AY46 -> 414174 | BG46: 414588 | BH46: 414876 | BI46: 415289 | BJ46: 415577 | BL46: 41 | BM46: 215.2671518 | BN46: 215.4823285 | BO46: 215.6320166 | BP46: 215.8466736 | BQ46: 215.9963617 | BS46: 41 | BT46: 322.9007277 | BU46: 323.2234927 | BV46: 323.4480249 | BW46: 323.7700104 | BX46: 323.9945426 | BZ46: 41 | CA46: 107.6335759 | CB46: 107.7411642 | CC46: 107.8160083 | CD46: 107.9233368 | CE46: 107.9981809
A47: 42 | B47: 35138.58333 | C47: 35138.58333 | D47: 35138.58333 | E47: 35138.58333 | F47: 35138.58333 | H47: 35138.58333 | I47: 35138.58333 | J47: 35138.58333 | L47: 42 | M47: 35138.58333 | N47: 35138.58333 | O47: 35138.58333 | P47: 35138.58333 | Q47: 35138.58333 | S47: 35138.58333 | T47: 35138.58333 | U47: 35138.58333 | V47: 35138.58333 | X47: 42 | Y47: 289418 | Z47: 132245 | AA47: 421663 | AB47: 0 | AC47: 0 | AD47: 0 | AE47: 0 | AL47: 0 | AM47: 0 | AN47: 0 | AO47: 0 | AQ47: 421663 | AR47: 421663 | AS47: 421663 | AT47: 421663 | AU47: 421663 | AW47: 289418 | AX47: 132244.635 | AY47: 421663 | BA47: 0 | BB47: 0 | BC47: 0 | BD47: 0 | BF47: 421663 | BG47: 421663 | BH47: 421663 | BI47: 421663 | BJ47: 421663 | BL47: 42 | BM47: 219.1595634 | BN47: 219.1595634 | BO47: 219.1595634 | BP47: 219.1595634 | BQ47: 219.1595634 | BS47: 42 | BT47: 328.7393451 | BU47: 328.7393451 | BV47: 328.7393451 | BW47: 328.7393451 | BX47: 328.7393451 | BZ47: 42 | CA47: 109.5797817 | CB47: 109.5797817 | CC47: 109.5797817 | CD47: 109.5797817 | CE47: 109.5797817
A48: 43 | B48: 35919.5 | C48: 35919.5 | D48: 35919.5 | E48: 35919.5 | F48: 35919.5 | H48: 35919.5 | I48: 35919.5 | J48: 35919.5 | L48: 43 | M48: 35919.5 | N48: 35919.5 | O48: 35919.5 | P48: 35919.5 | Q48: 35919.5 | S48: 35919.5 | T48: 35919.5 | U48: 35919.5 | V48: 35919.5 | X48: 43 | Y48: 295850 | Z48: 135184 | AA48: 431034 | AB48: 0 | AC48: 0 | AD48: 0 | AE48: 0 | AL48: 0 | AM48: 0 | AN48: 0 | AO48: 0 | AQ48: 431034 | AR48: 431034 | AS48: 431034 | AT48: 431034 | AU48: 431034 | AW48: 295850 | AX48: 135183.628 | AY48: 431034 | BA48: 0 | BB48: 0 | BC48: 0 | BD48: 0 | BF48: 431034 | BG48: 431034 | BH48: 431034 | BI48: 431034 | BJ48: 431034 | BL48: 43 | BM48: 224.0301455 | BN48: 224.0301455 | BO48: 224.0301455 | BP48: 224.0301455 | BQ48: 224.0301455 | BS48: 43 | BT48: 336.0452183 | BU48: 336.0452183 | BV48: 336.0452183 | BW48: 336.0452183 | BX48: 336.0452183 | BZ48: 43 | CA48: 112.0150728 | CB48: 112.0150728 | CC48: 112.0150728 | CD48: 112.0150728 | CE48: 112.0150728
A49: 44 | B49: 36722 | C49: 36722 | D49: 36722 | E49: 36722 | F49: 36722 | H49: 36722 | I49: 36722 | J49: 36722 | L49: 44 | M49: 36722 | N49: 36722 | O49: 36722 | P49: 36722 | Q49: 36722 | S49: 36722 | T49: 36722 | U49: 36722 | V49: 36722 | X49: 44 | Y49: 302460 | Z49: 138204 | AA49: 440664 | AB49: 0 | AC49: 0 | AD49: 0 | AE49: 0 | AL49: 0 | AM49: 0 | AN49: 0 | AO49: 0 | AQ49: 440664 | AR49: 440664 | AS49: 440664 | AT49: 440664 | AU49: 440664 | AW49: 302460 | AX49: 138203.9552 | AY49: 440664 | BA49: 0 | BB49: 0 | BC49: 0 | BD49: 0 | BF49: 440664 | BG49: 440664 | BH49: 440664 | BI49: 440664 | BJ49: 440664 | BL49: 44 | BM49: 229.035343 | BN49: 229.035343 | BO49: 229.035343 | BP49: 229.035343 | BQ49: 229.035343 | BS49: 44 | BT49: 343.5530146 | BU49: 343.5530146 | BV49: 343.5530146 | BW49: 343.5530146 | BX49: 343.5530146 | BZ49: 44 | CA49: 114.5176715 | CB49: 114.5176715 | CC49: 114.5176715 | CD49: 114.5176715 | CE49: 114.5176715
A50: 45 | B50: 37546.5 | C50: 37546.5 | D50: 37546.5 | E50: 37546.5 | F50: 37546.5 | H50: 37546.5 | I50: 37546.5 | J50: 37546.5 | L50: 45 | M50: 37546.5 | N50: 37546.5 | O50: 37546.5 | P50: 37546.5 | Q50: 37546.5 | S50: 37546.5 | T50: 37546.5 | U50: 37546.5 | V50: 37546.5 | X50: 45 | Y50: 309251 | Z50: 141307 | AA50: 450558 | AB50: 0 | AC50: 0 | AD50: 0 | AE50: 0 | AL50: 0 | AM50: 0 | AN50: 0 | AO50: 0 | AQ50: 450558 | AR50: 450558 | AS50: 450558 | AT50: 450558 | AU50: 450558 | AW50: 309251 | AX50: 141306.9872 | AY50: 450558 | BA50: 0 | BB50: 0 | BC50: 0 | BD50: 0 | BF50: 450558 | BG50: 450558 | BH50: 450558 | BI50: 450558 | BJ50: 450558 | BL50: 45 | BM50: 234.1777547 | BN50: 234.1777547 | BO50: 234.1777547 | BP50: 234.1777547 | BQ50: 234.1777547 | BS50: 45 | BT50: 351.266632 | BU50: 351.266632 | BV50: 351.266632 | BW50: 351.266632 | BX50: 351.266632 | BZ50: 45 | CA50: 117.0888773 | CB50: 117.0888773 | CC50: 117.0888773 | CD50: 117.0888773 | CE50: 117.0888773
A51: 46 | B51: 38393.66667 | C51: 38393.66667 | D51: 38393.66667 | E51: 38393.66667 | F51: 38393.66667 | H51: 38393.66667 | I51: 38393.66667 | J51: 38393.66667 | L51: 46 | M51: 38393.66667 | N51: 38393.66667 | O51: 38393.66667 | P51: 38393.66667 | Q51: 38393.66667 | S51: 38393.66667 | T51: 38393.66667 | U51: 38393.66667 | V51: 38393.66667 | X51: 46 | Y51: 316229 | Z51: 144495 | AA51: 460724 | AB51: 0 | AC51: 0 | AD51: 0 | AE51: 0 | AL51: 0 | AM51: 0 | AN51: 0 | AO51: 0 | AQ51: 460724 | AR51: 460724 | AS51: 460724 | AT51: 460724 | AU51: 460724 | AW51: 316229 | AX51: 144495.4657 | AY51: 460724 | BA51: 0 | BB51: 0 | BC51: 0 | BD51: 0 | BF51: 460724 | BG51: 460724 | BH51: 460724 | BI51: 460724 | BJ51: 460724 | BL51: 46 | BM51: 239.4615385 | BN51: 239.4615385 | BO51: 239.4615385 | BP51: 239.4615385 | BQ51: 239.4615385 | BS51: 46 | BT51: 359.1923077 | BU51: 359.1923077 | BV51: 359.1923077 | BW51: 359.1923077 | BX51: 359.1923077 | BZ51: 46 | CA51: 119.7307692 | CB51: 119.7307692 | CC51: 119.7307692 | CD51: 119.7307692 | CE51: 119.7307692
A52: 47 | B52: 39077.16667 | C52: 39077.16667 | D52: 39077.16667 | E52: 39077.16667 | F52: 39077.16667 | H52: 39077.16667 | I52: 39077.16667 | J52: 39077.16667 | L52: 47 | M52: 39077.16667 | N52: 39077.16667 | O52: 39077.16667 | P52: 39077.16667 | Q52: 39077.16667 | S52: 39077.16667 | T52: 39077.16667 | U52: 39077.16667 | V52: 39077.16667 | X52: 47 | Y52: 321858 | Z52: 147068 | AA52: 468926 | AB52: 0 | AC52: 0 | AD52: 0 | AE52: 0 | AL52: 0 | AM52: 0 | AN52: 0 | AO52: 0 | AQ52: 468926 | AR52: 468926 | AS52: 468926 | AT52: 468926 | AU52: 468926 | AW52: 321858 | AX52: 147067.5415 | AY52: 468926 | BA52: 0 | BB52: 0 | BC52: 0 | BD52: 0 | BF52: 468926 | BG52: 468926 | BH52: 468926 | BI52: 468926 | BJ52: 468926 | BL52: 47 | BM52: 243.7245322 | BN52: 243.7245322 | BO52: 243.7245322 | BP52: 243.7245322 | BQ52: 243.7245322 | BS52: 47 | BT52: 365.5867983 | BU52: 365.5867983 | BV52: 365.5867983 | BW52: 365.5867983 | BX52: 365.5867983 | BZ52: 47 | CA52: 121.8622661 | CB52: 121.8622661 | CC52: 121.8622661 | CD52: 121.8622661 | CE52: 121.8622661
A53: 48 | B53: 40873.41667 | C53: 40873.41667 | D53: 40873.41667 | E53: 40873.41667 | F53: 40873.41667 | H53: 40873.41667 | I53: 40873.41667 | J53: 40873.41667 | L53: 48 | M53: 40873.41667 | N53: 40873.41667 | O53: 40873.41667 | P53: 40873.41667 | Q53: 40873.41667 | S53: 40873.41667 | T53: 40873.41667 | U53: 40873.41667 | V53: 40873.41667 | X53: 48 | Y53: 336653 | Z53: 153828 | AA53: 490481 | AB53: 0 | AC53: 0 | AD53: 0 | AE53: 0 | AL53: 0 | AM53: 0 | AN53: 0 | AO53: 0 | AQ53: 490481 | AR53: 490481 | AS53: 490481 | AT53: 490481 | AU53: 490481 | AW53: 336653 | AX53: 153827.8652 | AY53: 490481 | BA53: 0 | BB53: 0 | BC53: 0 | BD53: 0 | BF53: 490481 | BG53: 490481 | BH53: 490481 | BI53: 490481 | BJ53: 490481 | BL53: 48 | BM53: 254.9277547 | BN53: 254.9277547 | BO53: 254.9277547 | BP53: 254.9277547 | BQ53: 254.9277547 | BS53: 48 | BT53: 382.391632 | BU53: 382.391632 | BV53: 382.391632 | BW53: 382.391632 | BX53: 382.391632 | BZ53: 48 | CA53: 127.4638773 | CB53: 127.4638773 | CC53: 127.4638773 | CD53: 127.4638773 | CE53: 127.4638773
A54: 49 | B54: 43616.41667 | C54: 43616.41667 | D54: 43616.41667 | E54: 43616.41667 | F54: 43616.41667 | H54: 43616.41667 | I54: 43616.41667 | J54: 43616.41667 | L54: 49 | M54: =BF54/12 -> 43616.41667 | N54: 43616.41667 | O54: 43616.41667 | P54: 43616.41667 | Q54: 43616.41667 | S54: 43616.41667 | T54: 43616.41667 | U54: 43616.41667 | V54: 43616.41667 | X54: 49 | Y54: 359246 | Z54: 164151 | AA54: 523397 | AB54: 0 | AC54: 0 | AD54: 0 | AE54: 0 | AL54: 0 | AM54: 0 | AN54: 0 | AO54: 0 | AQ54: 523397 | AR54: 523397 | AS54: 523397 | AT54: 523397 | AU54: 523397 | AW54: 359246 | AX54: 164151.3525 | AY54: 523397 | BA54: 0 | BB54: 0 | BC54: 0 | BD54: 0 | BF54: 523397 | BG54: 523397 | BH54: 523397 | BI54: 523397 | BJ54: 523397 | BL54: 49 | BM54: 272.0358628 | BN54: 272.0358628 | BO54: 272.0358628 | BP54: 272.0358628 | BQ54: 272.0358628 | BS54: 49 | BT54: 408.0537942 | BU54: 408.0537942 | BV54: 408.0537942 | BW54: 408.0537942 | BX54: 408.0537942 | BZ54: 49 | CA54: 136.0179314 | CB54: 136.0179314 | CC54: 136.0179314 | CD54: 136.0179314 | CE54: 136.0179314
A55: 50 | B55: 46661.16667 | C55: 46661.16667 | D55: 46661.16667 | E55: 46661.16667 | F55: 46661.16667 | H55: 46661.16667 | I55: 46661.16667 | J55: 46661.16667 | L55: 50 | M55: =BF55/12 -> 47761.75 | N55: 47761.75 | O55: 47761.75 | P55: 47761.75 | Q55: 47761.75 | S55: 47761.75 | T55: 47761.75 | U55: 47761.75 | V55: 47761.75 | X55: 50 | Y55: 384324 | Z55: 175610 | AA55: 559934 | AB55: 0 | AC55: 0 | AD55: 0 | AE55: 0 | AL55: 0 | AM55: 0 | AN55: 0 | AO55: 0 | AQ55: 559934 | AR55: 559934 | AS55: 559934 | AT55: 559934 | AU55: 559934 | AW55: 393389 | AX55: 179752.4159 | AY55: 573141 | BA55: 0 | BB55: 0 | BC55: 0 | BD55: 0 | BF55: 573141 | BG55: 573141 | BH55: 573141 | BI55: 573141 | BJ55: 573141 | BL55: 50 | BM55: 291.0259875 | BN55: 291.0259875 | BO55: 291.0259875 | BP55: 291.0259875 | BQ55: 291.0259875 | BS55: 50 | BT55: 436.5389813 | BU55: 436.5389813 | BV55: 436.5389813 | BW55: 436.5389813 | BX55: 436.5389813 | BZ55: 50 | CA55: 145.5129938 | CB55: 145.5129938 | CC55: 145.5129938 | CD55: 145.5129938 | CE55: 145.5129938
A56: 51 | B56: 51540.66667 | C56: 51540.66667 | D56: 51540.66667 | E56: 51540.66667 | F56: 51540.66667 | H56: 51540.66667 | I56: 51540.66667 | J56: 51540.66667 | L56: 51 | M56: 52928.08333 | N56: 52928.08333 | O56: 52928.08333 | P56: 52928.08333 | Q56: 52928.08333 | S56: 52928.08333 | T56: 52928.08333 | U56: 52928.08333 | V56: 52928.08333 | X56: 51 | Y56: 424514 | Z56: 193974 | AA56: 618488 | AL56: 0 | AM56: 0 | AN56: 0 | AO56: 0 | AQ56: 618488 | AR56: 618488 | AS56: 618488 | AT56: 618488 | AU56: 618488 | AW56: 435941 | AX56: 199195.829 | AY56: 635137 | BA56: 0 | BB56: 0 | BC56: 0 | BD56: 0 | BF56: 635137 | BG56: 635137 | BH56: 635137 | BI56: 635137 | BJ56: 635137 | BL56: 51 | BM56: 321.4594595 | BN56: 321.4594595 | BO56: 321.4594595 | BP56: 321.4594595 | BQ56: 321.4594595 | BS56: 51 | BT56: 482.1891892 | BU56: 482.1891892 | BV56: 482.1891892 | BW56: 482.1891892 | BX56: 482.1891892 | BZ56: 51 | CA56: 160.7297297 | CB56: 160.7297297 | CC56: 160.7297297 | CD56: 160.7297297 | CE56: 160.7297297
A57: 52 | B57: 58646.91667 | C57: 58646.91667 | D57: 58646.91667 | E57: 58646.91667 | F57: 58646.91667 | H57: 58646.91667 | I57: 58646.91667 | J57: 58646.91667 | L57: 52 | M57: 60279.5 | N57: 60279.5 | O57: 60279.5 | P57: 60279.5 | Q57: 60279.5 | S57: 60279.5 | T57: 60279.5 | U57: 60279.5 | V57: 60279.5 | X57: 52 | Y57: 483044 | Z57: 220719 | AA57: 703763 | AL57: 0 | AM57: 0 | AN57: 0 | AO57: 0 | AQ57: 703763 | AR57: 703763 | AS57: 703763 | AT57: 703763 | AU57: 703763 | AW57: 496491 | AX57: 226863.1221 | AY57: 723354 | BA57: 0 | BB57: 0 | BC57: 0 | BD57: 0 | BF57: 723354 | BG57: 723354 | BH57: 723354 | BI57: 723354 | BJ57: 723354 | BL57: 52 | BM57: 365.781185 | BN57: 365.781185 | BO57: 365.781185 | BP57: 365.781185 | BQ57: 365.781185 | BS57: 52 | BT57: 548.6717775 | BU57: 548.6717775 | BV57: 548.6717775 | BW57: 548.6717775 | BX57: 548.6717775 | BZ57: 52 | CA57: 182.8905925 | CB57: 182.8905925 | CC57: 182.8905925 | CD57: 182.8905925 | CE57: 182.8905925
A58: 53 | B58: 64392.08333 | C58: 64392.08333 | D58: 64392.08333 | E58: 64392.08333 | F58: 64392.08333 | H58: 64392.08333 | I58: 64392.08333 | J58: 64392.08333 | L58: 53 | M58: 67101.08333 | N58: 67101.08333 | O58: 67101.08333 | P58: 67101.08333 | Q58: 67101.08333 | S58: 67101.08333 | T58: 67101.08333 | U58: 67101.08333 | V58: 67101.08333 | X58: 53 | Y58: 530364 | Z58: 242341 | AA58: 772705 | AL58: 0 | AM58: 0 | AN58: 0 | AO58: 0 | AQ58: 772705 | AR58: 772705 | AS58: 772705 | AT58: 772705 | AU58: 772705 | AW58: 552677 | AX58: 252536.3596 | AY58: 805213 | BA58: 0 | BB58: 0 | BC58: 0 | BD58: 0 | BF58: 805213 | BG58: 805213 | BH58: 805213 | BI58: 805213 | BJ58: 805213 | BL58: 53 | BM58: 401.6138254 | BN58: 401.6138254 | BO58: 401.6138254 | BP58: 401.6138254 | BQ58: 401.6138254 | BS58: 53 | BT58: 602.420738 | BU58: 602.420738 | BV58: 602.420738 | BW58: 602.420738 | BX58: 602.420738 | BZ58: 53 | CA58: 200.8069127 | CB58: 200.8069127 | CC58: 200.8069127 | CD58: 200.8069127 | CE58: 200.8069127
A59: 54 | B59: 72051.25 | C59: 72051.25 | D59: 72051.25 | E59: 72051.25 | F59: 72051.25 | H59: 72051.25 | I59: 72051.25 | J59: 72051.25 | L59: 54 | M59: 75603.16667 | N59: 75603.16667 | O59: 75603.16667 | P59: 75603.16667 | Q59: 75603.16667 | S59: 75603.16667 | T59: 75603.16667 | U59: 75603.16667 | V59: 75603.16667 | X59: 54 | Y59: 593449 | Z59: 271166 | AA59: 864615 | AL59: 0 | AM59: 0 | AN59: 0 | AO59: 0 | AQ59: 864615 | AR59: 864615 | AS59: 864615 | AT59: 864615 | AU59: 864615 | AW59: 622704 | AX59: 284534.0068 | AY59: 907238 | BA59: 0 | BB59: 0 | BC59: 0 | BD59: 0 | BF59: 907238 | BG59: 907238 | BH59: 907238 | BI59: 907238 | BJ59: 907238 | BL59: 54 | BM59: 449.3840956 | BN59: 449.3840956 | BO59: 449.3840956 | BP59: 449.3840956 | BQ59: 449.3840956 | BS59: 54 | BT59: 674.0761435 | BU59: 674.0761435 | BV59: 674.0761435 | BW59: 674.0761435 | BX59: 674.0761435 | BZ59: 54 | CA59: 224.6920478 | CB59: 224.6920478 | CC59: 224.6920478 | CD59: 224.6920478 | CE59: 224.6920478
A60: 55 | B60: 81257.75 | C60: 81257.75 | D60: 81257.75 | E60: 81257.75 | F60: 81257.75 | H60: 81257.75 | I60: 81257.75 | J60: 81257.75 | L60: 55 | M60: 84809.66667 | N60: 84809.66667 | O60: 84809.66667 | P60: 84809.66667 | Q60: 84809.66667 | S60: 84809.66667 | T60: 84809.66667 | U60: 84809.66667 | V60: 84809.66667 | X60: 55 | Y60: 669278 | Z60: 305815 | AA60: 975093 | AL60: 0 | AM60: 0 | AN60: 0 | AO60: 0 | AQ60: 975093 | AR60: 975093 | AS60: 975093 | AT60: 975093 | AU60: 975093 | AW60: 698533 | AX60: 319182.7793 | AY60: 1017716 | BA60: 0 | BB60: 0 | BC60: 0 | BD60: 0 | BF60: 1017716 | BG60: 1017716 | BH60: 1017716 | BI60: 1017716 | BJ60: 1017716 | BL60: 55 | BM60: 506.8050936 | BN60: 506.8050936 | BO60: 506.8050936 | BP60: 506.8050936 | BQ60: 506.8050936 | BS60: 55 | BT60: 760.2076403 | BU60: 760.2076403 | BV60: 760.2076403 | BW60: 760.2076403 | BX60: 760.2076403 | BZ60: 55 | CA60: 253.4025468 | CB60: 253.4025468 | CC60: 253.4025468 | CD60: 253.4025468 | CE60: 253.4025468
A61: 56 | B61: 91581.5 | C61: 91581.5 | D61: 91581.5 | E61: 91581.5 | F61: 91581.5 | H61: 91581.5 | I61: 91581.5 | J61: 91581.5 | L61: 56 | M61: 95133.58333 | N61: 95133.58333 | O61: 95133.58333 | P61: 95133.58333 | Q61: 95133.58333 | S61: 95133.58333 | T61: 95133.58333 | U61: 95133.58333 | V61: 95133.58333 | X61: 56 | Y61: 754309 | Z61: 344669 | AA61: 1098978 | AL61: 0 | AM61: 0 | AN61: 0 | AO61: 0 | AQ61: 1098978 | AR61: 1098978 | AS61: 1098978 | AT61: 1098978 | AU61: 1098978 | AW61: 783566 | AX61: 358037.1631 | AY61: 1141603 | BA61: 0 | BB61: 0 | BC61: 0 | BD61: 0 | BF61: 1141603 | BG61: 1141603 | BH61: 1141603 | BI61: 1141603 | BJ61: 1141603 | BL61: 56 | BM61: 571.1943867 | BN61: 571.1943867 | BO61: 571.1943867 | BP61: 571.1943867 | BQ61: 571.1943867 | BS61: 56 | BT61: 856.79158 | BU61: 856.79158 | BV61: 856.79158 | BW61: 856.79158 | BX61: 856.79158 | BZ61: 56 | CA61: 285.5971933 | CB61: 285.5971933 | CC61: 285.5971933 | CD61: 285.5971933 | CE61: 285.5971933
Z62: =ROUND(Y62*valgt_regulering,0) -> 0
Z63: 0
Z64: 0
Z65: 0
Z66: 0
Z67: 0
Z68: 0
Z69: 0
A70: 2006-10-01 | B70: 4131.67 | C70: 4204.98 | D70: 4265.26 | E70: 4358.11 | F70: 4420 | Z70: 0
A71: 2007-04-01 | B71: 4229.54 | C71: 4303.89 | D71: 4365.01 | E71: 4459.17 | F71: 4521.93 | Z71: 0

Sheet Forside
J11: Lønniveau: | K11: 2022-04-01
D15: Hvad betyder det for lønnen, hvis man ændrer på lønsammensætning eller timetal ?

Sheet Omregner
D11: Valgt lønniveau: | F11: =Forside!K11 -> 2022-04-01 | H11: Timetal: | I11: 37
B13: 1) Grundbeløb pr. 31-3-2000 omregnet til nutidskr.
C14: Årligt grundbeløb: | E14: 11300
E16: år | F16: måned
C17: Aktuelt beløb | E17: =ROUND(((kr_omregnes*valgt_regulering)/37*I11),0) -> 16463 | F17: =E17/12 -> 1371.916667
B20: 2) Beløb der skal omregnes til '31-3-2000-niveau'
C21: Månedligt beløb | E21: 1296.9
E23: år | F23: måned
C24: Grundbeløb pr. 31-3-2000 | E24: =ROUND(E21*12/valgt_regulering,0)/I11*37 -> 10682 | F24: =E24/12 -> 890.1666667

Sheet Omregningstabel (hidden)
D1: 1.362716 | E1: 1.382496 | F1: 1.398079 | G1: 1.018559 | H1: 1.040662 | I1: 1.051157 | J1: 1.061566 | K1: 1.083422 | L1: 1.08868 | M1: 1.092675 | N1: 1.109523 | O1: 1.120038 | P1: 1.124454
B7: Indtast beløb: | C7: 1000
C10: 1/10 '84
C11: =Beløb -> 1000 | D11: 1/4 '98
B12: 1/4-98 | C12: =Beløb*_1_4_1998 -> 1362.716 | D12: =Beløb -> 1000 | E12: 1/10 '98
B13: 1/10-98 | C13: =Beløb*_1_10_1998 -> 1382.496 | D13: =Beløb/_1_4_1998*_1_10_1998 -> 1014.51513 | E13: =Beløb -> 1000 | F13: 1/4 '99
B14: 1/4-99 | C14: =Beløb*_1_4_1999 -> 1398.079 | D14: =Beløb/_1_4_1998*_1_4_1999 -> 1025.950381 | E14: =Beløb/_1_10_1998*_1_4_1999 -> 1011.271642 | F14: =Beløb -> 1000
B15: Grundbeløb pr. 31/3-00 | C15: =ROUND(C14,-2) -> 1400 | D15: =ROUND(D14,-2) -> 1000 | E15: =ROUND(E14,-2) -> 1000 | F15: =ROUND(F14,-2) -> 1000 | G15: 1/4 '00
B16: 1/4-00 | C16: =Nyt_beløb_1*_1_4_2000 -> 1425.9826 | D16: =Nyt_beløb_2*_1_4_2000 -> 1018.559 | E16: =Nyt_beløb_3*_1_4_2000 -> 1018.559 | F16: =Nyt_beløb_4*_1_4_2000 -> 1018.559 | G16: =Beløb -> 1000 | H16: 1/4 '01
B17: 1/4-01 | C17: =Nyt_beløb_1*_1_4_2001 -> 1456.9268 | D17: =Nyt_beløb_2*_1_4_2001 -> 1040.662 | E17: =Nyt_beløb_3*_1_4_2001 -> 1040.662 | F17: =Nyt_beløb_4*_1_4_2001 -> 1040.662 | G17: =beløb_4_00/_1_4_2000*_1_4_2001 -> 1021.700265 | H17: =Beløb -> 1000 | I17: 1/10 '01
B18: 1/10-01 | C18: =Nyt_beløb_1*_1_10_2001 -> 1471.6198 | D18: =Nyt_beløb_2*_1_10_2001 -> 1051.157 | E18: =Nyt_beløb_3*_1_10_2001 -> 1051.157 | F18: =Nyt_beløb_4*_1_10_2001 -> 1051.157 | G18: =beløb_4_00/_1_4_2000*_1_10_2001 -> 1032.004037 | H18: =beløb_4_01/_1_4_2001*_1_10_2001 -> 1010.084927 | I18: =Beløb -> 1000 | J18: 1/4 '02
B19: 1/4-02 | C19: =Nyt_beløb_1*_1_4_2002 -> 1486.1924 | D19: =Nyt_beløb_2*_1_4_2002 -> 1061.566 | E19: =Nyt_beløb_3*_1_4_2002 -> 1061.566 | F19: =Nyt_beløb_4*_1_4_2002 -> 1061.566 | G19: =beløb_4_00/_1_4_2000*_1_4_2002 -> 1042.223376 | H19: =beløb_4_01/_1_4_2001*_1_4_2002 -> 1020.087214 | I19: =beløb_10_01/_1_10_2001*_1_4_2002 -> 1009.902422 | J19: =Beløb -> 1000 | K19: 1/4 '03
B20: 1/4-03 | C20: =Nyt_beløb_1*_1_4_2003 -> 1516.7908 | D20: =Nyt_beløb_2*_1_4_2003 -> 1083.422 | E20: =Nyt_beløb_3*_1_4_2003 -> 1083.422 | F20: =Nyt_beløb_4*_1_4_2003 -> 1083.422 | G20: =beløb_4_00/_1_4_2000*_1_4_2003 -> 1063.681142 | H20: =beløb_4_01/_1_4_2001*_1_4_2003 -> 1041.08923 | I20: =beløb_10_01/_1_10_2001*_1_4_2003 -> 1030.694749 | J20: =beløb_4_02/_1_4_2002*_1_4_2003 -> 1020.588451 | K20: =Beløb -> 1000 | L20: 1/8 '03
B21: 1/8-03 | C21: =Nyt_beløb_1*_1_8_2003 -> 1524.152 | D21: =Nyt_beløb_2*_1_8_2003 -> 1088.68 | E21: =Nyt_beløb_3*_1_8_2003 -> 1088.68 | F21: =Nyt_beløb_4*_1_8_2003 -> 1088.68 | G21: =beløb_4_00/_1_4_2000*_1_8_2003 -> 1068.843337 | H21: =beløb_4_01/_1_4_2001*_1_8_2003 -> 1046.141783 | I21: =beløb_10_01/_1_10_2001*_1_8_2003 -> 1035.696856 | J21: =beløb_4_02/_1_4_2002*_1_8_2003 -> 1025.541511 | K21: =beløb_4_03/_1_4_2003*_1_8_2003 -> 1004.853141 | L21: =Beløb -> 1000 | M21: 1/10 '03
B22: 1/10-03 | C22: =Nyt_beløb_1*_1_10_2003 -> 1529.745 | D22: =Nyt_beløb_2*_1_10_2003 -> 1092.675 | E22: =Nyt_beløb_3*_1_10_2003 -> 1092.675 | F22: =Nyt_beløb_4*_1_10_2003 -> 1092.675 | G22: =beløb_4_00/_1_4_2000*_1_10_2003 -> 1072.765544 | H22: =beløb_4_01/_1_4_2001*_1_10_2003 -> 1049.980685 | I22: =beløb_4_01/_1_4_2001*_1_10_2003 -> 1049.980685 | J22: =beløb_4_02/_1_4_2002*_1_10_2003 -> 1029.304819 | K22: =beløb_4_03/_1_4_2003*_1_10_2003 -> 1008.540532 | L22: =beløb_8_03/_1_8_2003*_1_10_2003 -> 1003.669582 | M22: =Beløb -> 1000 | N22: 1/4 '04
B23: 1/4 '04 | C23: =Nyt_beløb_1*_1_4_2004 -> 1553.3322 | D23: =Nyt_beløb_2*_1_4_2004 -> 1109.523 | E23: =Nyt_beløb_3*_1_4_2004 -> 1109.523 | F23: =Nyt_beløb_4*_1_4_2004 -> 1109.523 | G23: =beløb_4_00/_1_4_2000*_1_4_2004 -> 1089.30656 | H23: =beløb_4_01/_1_4_2001*_1_4_2004 -> 1066.17038 | I23: =beløb_4_01/_1_4_2001*_1_4_2004 -> 1066.17038 | J23: =beløb_4_02/_1_4_2002*_1_4_2004 -> 1045.175712 | K23: =beløb_4_03/_1_4_2003*_1_4_2004 -> 1024.091259 | L23: =beløb_8_03/_1_8_2003*_1_4_2004 -> 1019.145203 | M23: =beløb_10_03/_1_10_2003*_1_4_2004 -> 1015.41904 | N23: =Beløb -> 1000 | O23: 1/8 '04
B24: 1/8 '04 | C24: =Nyt_beløb_1*_1_8_2004 -> 1568.0532 | D24: =Nyt_beløb_2*_1_8_2004 -> 1120.038 | E24: =Nyt_beløb_3*_1_8_2004 -> 1120.038 | F24: =Nyt_beløb_4*_1_8_2004 -> 1120.038 | G24: =beløb_4_00/_1_4_2000*_1_8_2004 -> 1099.629967 | H24: =beløb_4_01/_1_4_2001*_1_8_2004 -> 1076.274525 | I24: =beløb_4_01/_1_4_2001*_1_8_2004 -> 1076.274525 | J24: =beløb_4_02/_1_4_2002*_1_8_2004 -> 1055.08089 | K24: =beløb_4_03/_1_4_2003*_1_8_2004 -> 1033.796618 | L24: =beløb_8_03/_1_8_2003*_1_8_2004 -> 1028.803689 | M24: =beløb_10_03/_1_10_2003*_1_8_2004 -> 1025.042213 | N24: =beløb_4_04/_1_4_2004*_1_8_2004 -> 1009.477046 | O24: =Beløb -> 1000 | P24: 1/10 '04
B25: 1/10 '04 | C25: =Nyt_beløb_1*_1_10_2004 -> 1574.2356 | D25: =Nyt_beløb_2*_1_10_2004 -> 1124.454 | E25: =Nyt_beløb_3*_1_10_2004 -> 1124.454 | F25: =Nyt_beløb_4*_1_10_2004 -> 1124.454 | G25: =beløb_4_00/_1_4_2000*_1_10_2004 -> 1103.965504 | H25: =beløb_4_01/_1_4_2001*_1_10_2004 -> 1080.517978 | I25: =beløb_4_01/_1_4_2001*_1_10_2004 -> 1080.517978 | J25: =beløb_4_02/_1_4_2002*_1_10_2004 -> 1059.240782 | K25: =beløb_4_03/_1_4_2003*_1_10_2004 -> 1037.872593 | L25: =beløb_8_03/_1_8_2003*_1_10_2004 -> 1032.859977 | M25: =beløb_10_03/_1_10_2003*_1_10_2004 -> 1029.083671 | N25: =beløb_4_04/_1_4_2004*_1_10_2004 -> 1013.457134 | O25: =beløb_8_04/_1_8_2004*_1_10_2004 -> 1003.942723 | P25: =Beløb -> 1000

Sheet Tillæg_trin (hidden)
A1: 3
B3: Valgt lønniveau: | C3: =Forside!K11 -> 2022-04-01
B5: Løngruppe | D5: 3
B6: Timer/uge | D6: 37
B7: Pensions-% inkl. evt. fritvalgs-% | D7: 13.89
B8: Særlig feriegodtgørelse, aktuel pct. | D8: 1.95
B10: Stigning: | C10: Fra | D10: Til
B11: Løntrin | C11: 18 | D11: 19
B13: Løn | C13: =(VLOOKUP(til_trin,Lønark!A5:F61,løngruppe+2,FALSE)-VLOOKUP(fra_trin,Lønark!A5:F61,løngruppe+2,FALSE))/37*timetal*12 -> 4144
B14: Pension inkl. evt. fritvalgstillæg | C14: =(VLOOKUP(til_trin,Lønark!L5:Q61,løngruppe+2,FALSE)-VLOOKUP(fra_trin,Lønark!L5:Q61,løngruppe+2,FALSE))/37*timetal*pensionsstatus%*12 -> 575.6016
B15: Ferietillæg | C15: =ferie_pct%*C13 -> 80.808
B16: Årlig bruttoudgift i alt | C16: =ROUND(SUM(C13:C15),0) -> 4800

Sheet Tillæg_kr (hidden)
A1: 2
C3: Valgt lønniveau: | D3: =Forside!K11 -> 2022-04-01
A5: =VLOOKUP(dummy,reg_procenter,2,FALSE) ->  | C5: Årligt beløb, 31.3.2000 niveau | D5: 12900
C6: Timer/uge | D6: 30
C7: Pension-% inkl. evt. fritvalgs-% | D7: 13.89
C8: Særlig feriegodtg., aktuel pct. | D8: 1.95
C11: bruttoudgift / år | D11: bruttoudgift / md
B12: Løn | C12: =kr*valgt_regulering/37*timetal -> 15238.73165 | D12: =beløb/12 -> 1269.894304
B13: Pension inkl. evt. fritvalgstillæg | C13: =beløb*pensionsstatus% -> 2116.659826 | D13: =C13/12 -> 176.3883188
B14: Ferietillæg | C14: =D8%*(C12) -> 297.1552671 | D14: =C14/12 -> 24.76293893
B15: Bruttoudgift i alt | C15: =ROUND(SUM(C12:C14),0) -> 17653 | D15: =ROUND(SUM(D12:D14),0) -> 1471

Sheet Samlet_omk
A1: 2 | B1: Valgt lønniveau: | C1: =Forside!K11 -> 2022-04-01
B3: Løngruppe | C3: 0
B4: Timer/uge | C4: 37
B5: Pensions-% inkl. evt. fritvalgs-% | C5: 13.89
B6: Særlig feriegodtgørelse, aktuel pct. | C6: 1.95
B8: Løntrin | C8: 21
B10: Reguleret tillæg (31.3.2000) kr./år | C10: 12000
B13: Løn/time | C13: =IFERROR(ROUND(VLOOKUP(fra_trin,Lønark!A5:AU61,løngruppe+43,FALSE)/1924,2)+ROUND(C10*valgt_regulering/1924,2),ROUND(C10*valgt_regulering/1924,2)) -> 163.52
B14: Pension inkl. evt. fritvalgstillæg | C14: =C13*pensionsstatus% -> 22.712928
B15: Ferietillæg | C15: =C6%*C13 -> 3.18864
B16: Time bruttoudgift i alt | C16: =SUM(C13:C15) -> 189.421568
B18: Løn/måned | C18: =IFERROR((VLOOKUP(fra_trin,Lønark!A5:F61,løngruppe+2,FALSE)+(C10*valgt_regulering/12))/37*timetal,C10*valgt_regulering/12/37*timetal) -> 26217.34967
B19: Pension inkl. evt. fritvalgstillæg | C19: =IFERROR(((VLOOKUP(fra_trin,Lønark!L5:Q61,løngruppe+2,FALSE)+C10/12*valgt_regulering)/37*timetal)*pensionsstatus%,C10/12*valgt_regulering/37*timetal*pensionsstatus%) -> 3641.589869
B20: Ferietillæg | C20: =C6%*C18 -> 511.2383185
B21: Månedlig bruttoudgift i alt | C21: =SUM(C18:C20) -> 30370.17785
B23: Løn/år | C23: =C18*12 -> 314608.196
B24: Pension inkl. evt. fritvalgstillæg | C24: =C19*12 -> 43699.07842
B25: Ferietillæg | C25: =C20*12 -> 6134.859822
B26: Årlig bruttoudgift i alt | C26: =SUM(C23:C25) -> 364442.1342

Sheet Tid op_ned
A1: 2 | B1: Valgt lønniveau: | C1: =Forside!K11 -> 2022-04-01
B3: Grundoplysninger:
B4: Løngruppe | C4: 0
B5: Pensions-% inkl. evt. fritvalgs-% | C5: 12.94
B6: Særlig feriegodtgørelse, aktuel procent | C6: 1.95
B9: Lønsammensætning (trin i alt og grundbeløb i alt) | C9: Før ændring | E9: Efter ændring
B11: Løndele: | C11: I alt
B13: Løntrin - centralt og lokalt aftalte | C13: 33 | E13: 33
B15: Tillæg (grundbeløb 31.3.2000) kr./år centralt og lokalt aftalte | E15: 11300
C18: Før ændring | E18: Efter ændring | H18: Difference
B19: Timer/uge | C19: 32 | E19: 32 | H19: =-(C19-timetal_ny) -> 0
B21: Fast månedsløn | C21: =(VLOOKUP(C13,Lønark!A5:F61,$C$4+2,FALSE)+((C15)*valgt_regulering/12))/37*C19 -> 25958.63063 | E21: =(VLOOKUP(E13,Lønark!A5:F61,$C$4+2,FALSE)+((E15)*valgt_regulering/12))/37*timetal_ny -> 27145.17787 | H21: =E21-C21 -> 1186.547236
B22: Pension inkl. evt. fritvalgstillæg | C22: =(((VLOOKUP(C13,Lønark!L5:Q61,løngruppe+2,FALSE)+(C15*valgt_regulering/12))/37*C19)*C5%) -> 3433.711769 | E22: =((VLOOKUP(E13,Lønark!L5:Q61,løngruppe+2,FALSE)+(E15*valgt_regulering/12))/37*timetal_ny)*C5% -> 3587.250982 | H22: =E22-C22 -> 153.5392123
B23: Ferietillæg | C23: =$C$6%*C21 -> 506.1932973 | E23: =$C$6%*E21 -> 529.3309684 | H23: =E23-C23 -> 23.1376711
B24: Månedsløn, brutto | C24: =SUM(C21:C23) -> 29898.5357 | E24: =SUM(E21:E23) -> 31261.75982 | H24: =E24-C24 -> 1363.224119
B26: Fast løn, år | C26: =C21*12 -> 311503.5676 | D26: 0 | E26: 325742.1344 | H26: =E26-C26 -> 14238.56683
B27: Pension inkl. evt. fritvalgstillæg, år | C27: 41204.54123 | D27: 0 | E27: 43047.01178 | H27: =E27-C27 -> 1842.470548
B28: Ferietillæg, år | C28: =C23*12 -> 6074.319568 | E28: =E23*12 -> 6351.971621 | H28: =E28-C28 -> 277.6520532
B29: Årsløn, brutto | C29: =SUM(C26:C28) -> 358782.4284 | E29: =SUM(E26:E28) -> 375141.1178 | H29: =E29-C29 -> 16358.68943
B31: Timeløn | C31: =ROUND(VLOOKUP(C13,Lønark!A5:AU61,C4+43,FALSE)/1924,2)+ROUND(C15*valgt_regulering/1924,2) -> 187.2 | D31: =D26/timetal_ny*37/1924 -> 0 | E31: =ROUND(VLOOKUP(E13,Lønark!A5:AU61,C4+43,FALSE)/1924,2)+ROUND(E15*valgt_regulering/1924,2) -> 195.76 | H31: =E31-C31 -> 8.56
